Workbook

Sheet Sheet1
C2: 【COLMINA Storeのお客様専用】 月額サブスクリプション ｅＳｐｏｔ ユーザ登録票
C4: この度は、建設業向け月額サブスクリプションeSpotの事前お申込み、誠にありがとうございます。 COLMINA StoreからeSpotへの契約切替を行っていただくために本ユーザ登録票が必要となります。 必要事項をご記入いただき、以下のお問い合わせ窓口にご提出をお願いいたします。 また、契約窓口は富士通グループ販売パートナーの都築電気株式会社となります。別途、都築電気株式会社より本ユーザ登録票に記載のご担当者様宛にご連絡を差し上げますので、書面による契約手続きを行っていただきますようお願いいたします。 なお、お客様情報につきましては、当社サービス以外の目的で使用することはございません。 ■お問い合せ窓口■ 富士通Ｊａｐａｎ株式会社 ＦＣＥＮＡ担当 サポート対応時間：月～金 9:30～12:00 13:00～17:00 E-Mail ： fcena-info@cs.jp.fujitsu.com
C16: １）申請区分 | E16: 登録 | L16: 申込日 | M16: 年 月 日
C17: ２）お客様情報（窓口責任者情報）
D18: 会社名
D19: 責任者所属
D20: 責任者氏名 | J20: E-mail | P20: ※
D21: 住所 | E21: 〒 -
D22: 電話番号
G23: ※ 本サービス開始のご案内のｅＳｐｏｔＩＤとパスワードを送付いたします。 携帯電話のメールアドレスを登録する場合は、「ml.jp.fujitsu.com」ドメインからのメール受信許可設定が必要な場合が あります。 操作方法については、お客様がお使いの携帯電話提供元のサポートホームページまたはサポートへ確認をお願いいたします。
D25: 連絡欄
D28: 【個人情報の取扱いについて】 ・送信いただいたお客様の個人情報につきましては、当社にて厳重に管理し、お問い合わせに対するご回答、資料の送付に使用させていただくものとし、他の目的には一切使用いたしません。 ・お客様が個人情報を提供するか否かは、お客様の任意で決定してください。但し、当社からお客様にご回答するにあたり、必要な個人情報のご提供をいただけない場合、お客様からのお問い合わせに対するご回答はいたしかねますのでご了承下さい。 ・お客様自身の個人情報の照会、訂正、削除につきましては、上記のお問い合わせ窓口までお知らせ願います。 | N28: 弊社記入欄
N29: 受付日：
N32: オーダ番号：
D35: Copyright 2010-2025 FUJITSU LIMITED 2025年 6月 第1.0版

Sheet 型名 (hidden)
B1: 提供形態 | C1: 業務 | D1: 商品概要 | E1: 基本 オプション | F1: 公開区分 | G1: 販売 区分 | H1: 型名 | I1: 商品名 | J1: 商品名結合 | K1: 価格（月額） | L1: 提供形態 | M1: 備考 | N1: 販売開始 | O1: パートナ 仕切基準 価格 | P1: パートナ 仕切率 | Q1: パートナ 仕切価格
B2: SaaS | C2: 会計 | D2: 発売記念キャンペーン | E2: 基本 | F2: 一般公開 | G2: 【販売終了】 | H2: SVS002750 | I2: ＧＬＯＶＩＡ ｓｍａｒｔ 会計 きらら 業務アプリケーション利用サービス コンパクトプラン（１ＩＤ）（キャンペーン） | J2: =CONCATENATE(G2,I2) -> 【販売終了】 ＧＬＯＶＩＡ ｓｍａｒｔ 会計 きらら 業務アプリケーション利用サービス コンパクトプラン（１ＩＤ）（キャンペーン） | K2: 9800 | L2: 月額 | M2: ・利用可能日：5日/週 ・利用時間：13:00～17:00 ・1ユーザまで ※Q/Aなし（別途オプション） | N2: 2011/03/31 販売停止 | O2: 1307 | P2: 0.75 | Q2: =ROUNDDOWN(O2*P2,-1) -> 980
B3: SaaS | C3: 会計 | D3: 発売記念キャンペーン | E3: オプション | F3: 一般公開 | G3: 【販売終了】 | H3: SVS002751 | I3: ＧＬＯＶＩＡ ｓｍａｒｔ 会計 きらら 業務アプリケーション利用サービス Ｑ／Ａオプション（コンパクト用）（キャンペーン） | J3: =CONCATENATE(G3,I3) -> 【販売終了】 ＧＬＯＶＩＡ ｓｍａｒｔ 会計 きらら 業務アプリケーション利用サービス Ｑ／Ａオプション（コンパクト用）（キャンペーン） | K3: 10000 | L3: 月額 | M3: ・24回まで/年 ※コンパクトプラン用 | N3: 2011/03/31 販売停止 | O3: 1334 | P3: 0.75 | Q3: 1000
B4: SaaS | C4: 会計 | D4: 発売記念キャンペーン | E4: 基本 | F4: 一般公開 | G4: 【販売終了】 | H4: SVS002752 | I4: ＧＬＯＶＩＡ ｓｍａｒｔ 会計 きらら 業務アプリケーション利用サービス ベーシックプラン（１ＩＤ）（キャンペーン） | J4: 【販売終了】 ＧＬＯＶＩＡ ｓｍａｒｔ 会計 きらら 業務アプリケーション利用サービス ベーシックプラン（１ＩＤ）（キャンペーン） | K4: 35000 | L4: 月額 | M4: ・利用可能日：5日/週 ・利用時間：9:00～17:00 ※Q/Aあり（60回/年まで） | N4: 2011/03/31 販売停止 | O4: 4667 | P4: 0.75 | Q4: 3500
B5: SaaS | C5: 会計 | D5: 発売記念キャンペーン | E5: オプション | F5: 一般公開 | G5: 【販売終了】 | H5: SVS002753 | I5: ＧＬＯＶＩＡ ｓｍａｒｔ 会計 きらら 業務アプリケーション利用サービス 利用者追加（１ＩＤ）オプション（キャンペーン） | J5: 【販売終了】 ＧＬＯＶＩＡ ｓｍａｒｔ 会計 きらら 業務アプリケーション利用サービス 利用者追加（１ＩＤ）オプション（キャンペーン） | K5: 15000 | L5: 月額 | M5: ※ベーシックプラン用（基本ID＋6ID=7IDまで） | N5: 2011/03/31 販売停止 | O5: 2000 | P5: 0.75 | Q5: 1500
B6: SaaS | C6: 会計 | D6: 発売記念キャンペーン | E6: 基本 | F6: 一般公開 | G6: 【販売終了】 | H6: SVS002754 | I6: ＧＬＯＶＩＡ ｓｍａｒｔ 会計 きらら 業務アプリケーション利用サービス プレミアムプラン（３ＩＤ）（キャンペーン） | J6: 【販売終了】 ＧＬＯＶＩＡ ｓｍａｒｔ 会計 きらら 業務アプリケーション利用サービス プレミアムプラン（３ＩＤ）（キャンペーン） | K6: 80000 | L6: 月額 | M6: ・利用可能日：毎日 ・利用時間：9:00～24:00 ・リモートスポット支援（2回/年まで） ※Q/Aあり（60回/年まで） | N6: 2011/03/31 販売停止 | O6: 10667 | P6: 0.75 | Q6: 8000
B7: SaaS | C7: 会計 | D7: 発売記念キャンペーン | E7: オプション | F7: 一般公開 | G7: 【販売終了】 | H7: SVS002755 | I7: ＧＬＯＶＩＡ ｓｍａｒｔ 会計 きらら 業務アプリケーション利用サービス 利用者追加（１ＩＤ）オプション（キャンペーン） | J7: 【販売終了】 ＧＬＯＶＩＡ ｓｍａｒｔ 会計 きらら 業務アプリケーション利用サービス 利用者追加（１ＩＤ）オプション（キャンペーン） | K7: 15000 | L7: 月額 | M7: ※プレミアムプラン用（基本ID＋4ID=7IDまで） | N7: 2011/03/31 販売停止 | O7: 2000 | P7: 0.75 | Q7: 1500
B8: SaaS | C8: 会計 | D8: モニターキャンペーン | E8: 基本 | F8: 一般公開 | G8: 【販売終了】 | H8: SVS002770 | I8: ＧＬＯＶＩＡ ｓｍａｒｔ 会計 きらら 業務アプリケーション利用サービス コンパクトプラン（１ＩＤ）（モニター） | J8: 【販売終了】 ＧＬＯＶＩＡ ｓｍａｒｔ 会計 きらら 業務アプリケーション利用サービス コンパクトプラン（１ＩＤ）（モニター） | K8: 9800 | L8: 月額 | M8: ・利用可能日：毎日 ・利用時間：7:00～24:00 ・1ユーザまで ※Q/Aなし（別途オプション） | N8: 2011/03/31 販売停止 | O8: 1307 | P8: 0.75 | Q8: 980
B9: SaaS | C9: 会計 | D9: モニターキャンペーン | E9: オプション | F9: 一般公開 | G9: 【販売終了】 | H9: SVS002771 | I9: ＧＬＯＶＩＡ ｓｍａｒｔ 会計 きらら 業務アプリケーション利用サービス Ｑ／Ａオプション（コンパクト用）（モニター） | J9: 【販売終了】 ＧＬＯＶＩＡ ｓｍａｒｔ 会計 きらら 業務アプリケーション利用サービス Ｑ／Ａオプション（コンパクト用）（モニター） | K9: 10000 | L9: 月額 | M9: ・24回まで/年 ※コンパクトプラン用 | N9: 2011/03/31 販売停止 | O9: 1334 | P9: 0.75 | Q9: 1000
B10: SaaS | C10: 会計 | D10: モニターキャンペーン | E10: 基本 | F10: 一般公開 | G10: 【販売終了】 | H10: SVS002772 | I10: ＧＬＯＶＩＡ ｓｍａｒｔ 会計 きらら 業務アプリケーション利用サービス ベーシックプラン（１ＩＤ）（モニター） | J10: 【販売終了】 ＧＬＯＶＩＡ ｓｍａｒｔ 会計 きらら 業務アプリケーション利用サービス ベーシックプラン（１ＩＤ）（モニター） | K10: 35000 | L10: 月額 | M10: ・利用可能日：毎日 ・利用時間：7:00～24:00 ※Q/Aあり（60回/年まで） | N10: 2011/03/31 販売停止 | O10: 4667 | P10: 0.75 | Q10: 3500
B11: SaaS | C11: 会計 | D11: モニターキャンペーン | E11: オプション | F11: 一般公開 | G11: 【販売終了】 | H11: SVS002773 | I11: ＧＬＯＶＩＡ ｓｍａｒｔ 会計 きらら 業務アプリケーション利用サービス 利用者追加（１ＩＤ）オプション（モニター） | J11: 【販売終了】 ＧＬＯＶＩＡ ｓｍａｒｔ 会計 きらら 業務アプリケーション利用サービス 利用者追加（１ＩＤ）オプション（モニター） | K11: 15000 | L11: 月額 | M11: ※ベーシックプラン用（基本ID＋6ID=7IDまで） | N11: 2011/03/31 販売停止 | O11: 2000 | P11: 0.75 | Q11: 1500
B12: SaaS | C12: 会計 | D12: モニターキャンペーン | E12: 基本 | F12: 一般公開 | G12: 【販売終了】 | H12: SVS002774 | I12: ＧＬＯＶＩＡ ｓｍａｒｔ 会計 きらら 業務アプリケーション利用サービス プレミアムプラン（３ＩＤ）（モニター） | J12: 【販売終了】 ＧＬＯＶＩＡ ｓｍａｒｔ 会計 きらら 業務アプリケーション利用サービス プレミアムプラン（３ＩＤ）（モニター） | K12: 80000 | L12: 月額 | M12: ・利用可能日：毎日 ・利用時間：7:00～24:00 ・リモートスポット支援（2回/年まで） ※Q/Aあり（60回/年まで） | N12: 2011/03/31 販売停止 | O12: 10667 | P12: 0.75 | Q12: 8000
B13: SaaS | C13: 会計 | D13: モニターキャンペーン | E13: オプション | F13: 一般公開 | G13: 【販売終了】 | H13: SVS002775 | I13: ＧＬＯＶＩＡ ｓｍａｒｔ 会計 きらら 業務アプリケーション利用サービス 利用者追加（１ＩＤ）オプション（モニター） | J13: 【販売終了】 ＧＬＯＶＩＡ ｓｍａｒｔ 会計 きらら 業務アプリケーション利用サービス 利用者追加（１ＩＤ）オプション（モニター） | K13: 15000 | L13: 月額 | M13: ※プレミアムプラン用（基本ID＋4ID=7IDまで） | N13: 2011/03/31 販売停止 | O13: 2000 | P13: 0.75 | Q13: 1500
B14: SaaS | C14: 会計 | D14: 通常商品 | E14: 基本 | F14: 一般公開 | G14: 【販売終了】 | H14: SVS002700 | I14: ＧＬＯＶＩＡ ｓｍａｒｔ 会計 きらら 業務アプリケーション利用サービス コンパクトプラン（１ＩＤ） | J14: 【販売終了】 ＧＬＯＶＩＡ ｓｍａｒｔ 会計 きらら 業務アプリケーション利用サービス コンパクトプラン（１ＩＤ） | K14: 9800 | L14: 月額 | M14: ・利用可能日：５日／週 ・利用時間：13:00～17:00 ・1ユーザまで ※Q/Aなし（別途オプション） | N14: 2011/06/01 販売停止 | P14: 0.75 | Q14: =ROUNDDOWN(K14*P14,-1) -> 7350
B15: SaaS | C15: 会計 | D15: 通常商品 | E15: オプション | F15: 一般公開 | G15: 【販売終了】 | H15: SVS002701 | I15: ＧＬＯＶＩＡ ｓｍａｒｔ 会計 きらら 業務アプリケーション利用サービス Ｑ／Ａオプション（コンパクト用） | J15: 【販売終了】 ＧＬＯＶＩＡ ｓｍａｒｔ 会計 きらら 業務アプリケーション利用サービス Ｑ／Ａオプション（コンパクト用） | K15: 10000 | L15: 月額 | M15: ・24回まで/年 ※コンパクトプラン用 | N15: 2011/06/01 販売停止 | P15: 0.75 | Q15: 7500
B16: SaaS | C16: 会計 | D16: 通常商品 | E16: 基本 | F16: 一般公開 | G16: 【販売終了】 | H16: SVS002702 | I16: ＧＬＯＶＩＡ ｓｍａｒｔ 会計 きらら 業務アプリケーション利用サービス ベーシックプラン（１ＩＤ） | J16: 【販売終了】 ＧＬＯＶＩＡ ｓｍａｒｔ 会計 きらら 業務アプリケーション利用サービス ベーシックプラン（１ＩＤ） | K16: 35000 | L16: 月額 | M16: ・利用可能日：５日／週 ・利用時間：09:00～17:00 ※Q/Aあり（60回/年まで） | N16: 2011/06/01 販売停止 | P16: 0.75 | Q16: 26250
B17: SaaS | C17: 会計 | D17: 通常商品 | E17: オプション | F17: 一般公開 | G17: 【販売終了】 | H17: SVS002703 | I17: ＧＬＯＶＩＡ ｓｍａｒｔ 会計 きらら 業務アプリケーション利用サービス 利用者追加（１ＩＤ）オプション | J17: 【販売終了】 ＧＬＯＶＩＡ ｓｍａｒｔ 会計 きらら 業務アプリケーション利用サービス 利用者追加（１ＩＤ）オプション | K17: 15000 | L17: 月額 | M17: ※ベーシックプラン用（基本ID＋6ID=7IDまで） | N17: 2011/06/01 販売停止 | P17: 0.75 | Q17: 11250
B18: SaaS | C18: 会計 | D18: 通常商品 | E18: 基本 | F18: 一般公開 | G18: 【販売終了】 | H18: SVS002704 | I18: ＧＬＯＶＩＡ ｓｍａｒｔ 会計 きらら 業務アプリケーション利用サービス プレミアムプラン（３ＩＤ） | J18: 【販売終了】 ＧＬＯＶＩＡ ｓｍａｒｔ 会計 きらら 業務アプリケーション利用サービス プレミアムプラン（３ＩＤ） | K18: 80000 | L18: 月額 | M18: ・利用可能日：毎日 ・利用時間：09:00～24:00 ・リモートスポット支援（2回/年まで） ※Q/Aあり（60回/年まで） | N18: 2011/06/01 販売停止 | P18: 0.75 | Q18: 60000
B19: SaaS | C19: 会計 | D19: 通常商品 | E19: オプション | F19: 一般公開 | G19: 【販売終了】 | H19: SVS002705 | I19: ＧＬＯＶＩＡ ｓｍａｒｔ 会計 きらら 業務アプリケーション利用サービス 利用者追加（１ＩＤ）オプション | J19: 【販売終了】 ＧＬＯＶＩＡ ｓｍａｒｔ 会計 きらら 業務アプリケーション利用サービス 利用者追加（１ＩＤ）オプション | K19: 15000 | L19: 月額 | M19: ※プレミアムプラン用（基本ID＋4ID=7IDまで） | N19: 2011/06/01 販売停止 | P19: 0.75 | Q19: 11250
B20: SaaS | C20: 会計 | D20: 利用日/利用時間拡大 | E20: 基本 | F20: 一般公開 | G20: 【販売終了】 | H20: SVS002760 | I20: ＧＬＯＶＩＡ ｓｍａｒｔ きらら 会計 業務アプリケーション利用サービス コンパクトプラン（１ＩＤ） | J20: 【販売終了】 ＧＬＯＶＩＡ ｓｍａｒｔ きらら 会計 業務アプリケーション利用サービス コンパクトプラン（１ＩＤ） | K20: 9800 | L20: 月額 | M20: ・利用可能日：毎日 ・利用時間：07:00～24:00 ・1ユーザまで ※Q/Aなし（別途オプション） | N20: 2011-06-01 | P20: 0.75 | Q20: 7350
B21: SaaS | C21: 会計 | D21: 利用日/利用時間拡大 | E21: オプション | F21: 一般公開 | G21: 【販売終了】 | H21: SVS002761 | I21: ＧＬＯＶＩＡ ｓｍａｒｔ きらら 会計 業務アプリケーション利用サービス Ｑ／Ａオプション（コンパクト用） | J21: 【販売終了】 ＧＬＯＶＩＡ ｓｍａｒｔ きらら 会計 業務アプリケーション利用サービス Ｑ／Ａオプション（コンパクト用） | K21: 10000 | L21: 月額 | M21: ・24回まで/年 ※コンパクト用 | N21: 2011-06-01 | P21: 0.75 | Q21: 7500
B22: SaaS | C22: 会計 | D22: 利用日/利用時間拡大 | E22: オプション | F22: 一般公開 | G22: 【販売終了】 | H22: SVS002790 | I22: ＧＬＯＶＩＡ ｓｍａｒｔ きらら 会計 業務アプリケーション利用サービス コンパクト手形管理オプション | J22: =CONCATENATE(G22,I22) -> 【販売終了】 ＧＬＯＶＩＡ ｓｍａｒｔ きらら 会計 業務アプリケーション利用サービス コンパクト手形管理オプション | K22: 5000 | L22: 月額 | M22: コンパクトプラン用の手形管理OP | N22: 2012-01-06 | P22: 0.75 | Q22: 3750
B23: SaaS | C23: 会計 | D23: 利用日/利用時間拡大 | E23: 基本 | F23: 一般公開 | G23: 【販売終了】 | H23: SVS002762 | I23: ＧＬＯＶＩＡ ｓｍａｒｔ きらら 会計 業務アプリケーション利用サービス ベーシックプラン（１ＩＤ） | J23: 【販売終了】 ＧＬＯＶＩＡ ｓｍａｒｔ きらら 会計 業務アプリケーション利用サービス ベーシックプラン（１ＩＤ） | K23: 35000 | L23: 月額 | M23: ・利用可能日：毎日 ・利用時間：07:00～24:00 ※Q/Aあり（60回/年まで） | N23: 2011-06-01 | P23: 0.75 | Q23: 26250
B24: SaaS | C24: 会計 | D24: 利用日/利用時間拡大 | E24: オプション | F24: 一般公開 | G24: 【販売終了】 | H24: SVS002763 | I24: ＧＬＯＶＩＡ ｓｍａｒｔ きらら 会計 業務アプリケーション利用サービス ベーシック利用者追加（１ＩＤ）オプション | J24: 【販売終了】 ＧＬＯＶＩＡ ｓｍａｒｔ きらら 会計 業務アプリケーション利用サービス ベーシック利用者追加（１ＩＤ）オプション | K24: 15000 | L24: 月額 | M24: ※ベーシック用（基本ID＋6ID=7IDまで） | N24: 2011-06-01 | P24: 0.75 | Q24: 11250
B25: SaaS | C25: 会計 | D25: 利用日/利用時間拡大 | E25: オプション | F25: 一般公開 | G25: 【販売終了】 | H25: SVS002791 | I25: ＧＬＯＶＩＡ ｓｍａｒｔ きらら 会計 業務アプリケーション利用サービス ベーシック手形管理オプション | J25: =CONCATENATE(G25,I25) -> 【販売終了】 ＧＬＯＶＩＡ ｓｍａｒｔ きらら 会計 業務アプリケーション利用サービス ベーシック手形管理オプション | K25: 10000 | L25: 月額 | M25: ベーシックプラン用の手形管理OP | N25: 2012-01-06 | P25: 0.75 | Q25: 7500
B26: SaaS | C26: 会計 | D26: 利用日/利用時間拡大 | E26: 基本 | F26: 一般公開 | G26: 【販売終了】 | H26: SVS002764 | I26: ＧＬＯＶＩＡ ｓｍａｒｔ きらら 会計 業務アプリケーション利用サービス プレミアムプラン（３ＩＤ） | J26: 【販売終了】 ＧＬＯＶＩＡ ｓｍａｒｔ きらら 会計 業務アプリケーション利用サービス プレミアムプラン（３ＩＤ） | K26: 80000 | L26: 月額 | M26: ・利用可能日：毎日 ・利用時間：07:00～24:00 ・リモートスポット支援（2回/年まで） ※Q/Aあり（60回/年まで） | N26: 2011-06-01 | P26: 0.75 | Q26: 60000
B27: SaaS | C27: 会計 | D27: 利用日/利用時間拡大 | E27: オプション | F27: 一般公開 | G27: 【販売終了】 | H27: SVS002765 | I27: ＧＬＯＶＩＡ ｓｍａｒｔ きらら 会計 業務アプリケーション利用サービス プレミアム利用者追加（１ＩＤ）オプション | J27: 【販売終了】 ＧＬＯＶＩＡ ｓｍａｒｔ きらら 会計 業務アプリケーション利用サービス プレミアム利用者追加（１ＩＤ）オプション | K27: 15000 | L27: 月額 | M27: ※プレミアム用（基本ID＋4ID=7IDまで） | N27: 2011-06-01 | P27: 0.75 | Q27: 11250
B28: SaaS | C28: 会計 | D28: 利用日/利用時間拡大 | E28: オプション | F28: 一般公開 | G28: 【販売終了】 | H28: SVS002792 | I28: ＧＬＯＶＩＡ ｓｍａｒｔ きらら 会計 業務アプリケーション利用サービス プレミアム手形管理オプション | J28: =CONCATENATE(G28,I28) -> 【販売終了】 ＧＬＯＶＩＡ ｓｍａｒｔ きらら 会計 業務アプリケーション利用サービス プレミアム手形管理オプション | K28: 10000 | L28: 月額 | M28: プレミアムプラン用の手形管理OP | N28: 2012-01-06 | P28: 0.75 | Q28: 7500
B29: SaaS | C29: 会計 | D29: 利用日/利用時間拡大 | E29: 基本 | F29: 一般公開 | G29: 【販売終了】 | H29: SVS002766 | I29: ＧＬＯＶＩＡ ｓｍａｒｔ きらら 会計 業務アプリケーション利用サービス ミニベーシックプラン（１ＩＤ） | J29: 【販売終了】 ＧＬＯＶＩＡ ｓｍａｒｔ きらら 会計 業務アプリケーション利用サービス ミニベーシックプラン（１ＩＤ） | K29: 10000 | L29: 月額 | M29: ・利用可能日：毎日 ・利用時間：07:00～24:00 ※Q/Aあり（24回/年まで） | N29: 2011-06-01 | P29: 0.75 | Q29: 7500
B30: SaaS | C30: 会計 | D30: 利用日/利用時間拡大 | E30: オプション | F30: 一般公開 | G30: 【販売終了】 | H30: SVS002793 | I30: ＧＬＯＶＩＡ ｓｍａｒｔ きらら 会計 業務アプリケーション利用サービス ミニベーシック手形管理オプション | J30: =CONCATENATE(G30,I30) -> 【販売終了】 ＧＬＯＶＩＡ ｓｍａｒｔ きらら 会計 業務アプリケーション利用サービス ミニベーシック手形管理オプション | K30: 5000 | L30: 月額 | M30: ミニベーシック用の手形管理OP | N30: 2012-01-06 | P30: 0.75 | Q30: 3750
B31: SaaS | C31: 会計 | D31: 利用日/利用時間拡大 | E31: オプション | F31: 一般公開 | G31: 【販売終了】 | H31: SVS002767 | I31: ＧＬＯＶＩＡ ｓｍａｒｔ きらら 会計 業務アプリケーション利用サービス ミニベーシック利用者追加（１ＩＤ）オプション | J31: 【販売終了】 ＧＬＯＶＩＡ ｓｍａｒｔ きらら 会計 業務アプリケーション利用サービス ミニベーシック利用者追加（１ＩＤ）オプション | K31: 3500 | L31: 月額 | M31: ※ミニベーシック用（基本ID＋2ID=3IDまで） | N31: 2011-06-01 | P31: 0.75 | Q31: 2620
B32: SaaS | C32: 人事給与 | D32: 利用日/利用時間拡大 | E32: 基本 | F32: 一般公開 | G32: 【販売終了】 | H32: SVS002710 | I32: ＧＬＯＶＩＡ ｓｍａｒｔ きらら 人事給与 業務アプリケーション利用サービス コンパクトプラン（１ＩＤ、従業員５０名） | J32: =CONCATENATE(G32,I32) -> 【販売終了】 ＧＬＯＶＩＡ ｓｍａｒｔ きらら 人事給与 業務アプリケーション利用サービス コンパクトプラン（１ＩＤ、従業員５０名） | K32: 9800 | L32: 月額 | M32: ・利用可能日：毎日 ・利用時間：07:00～24:00 ・1ユーザ限定 ・従業員50名限定 ※Q/Aなし（別途オプション） | N32: 2011-06-01 | P32: 0.75 | Q32: 7350
B33: SaaS | C33: 人事給与 | D33: 利用日/利用時間拡大 | E33: オプション | F33: 一般公開 | G33: 【販売終了】 | H33: SVS002711 | I33: ＧＬＯＶＩＡ ｓｍａｒｔ きらら 人事給与 業務アプリケーション利用サービス Ｑ／Ａオプション（コンパクト用） | J33: =CONCATENATE(G33,I33) -> 【販売終了】 ＧＬＯＶＩＡ ｓｍａｒｔ きらら 人事給与 業務アプリケーション利用サービス Ｑ／Ａオプション（コンパクト用） | K33: 10000 | L33: 月額 | M33: ・24回まで/年 ※コンパクトプラン用 | N33: 2011-06-01 | P33: 0.75 | Q33: 7500
B34: SaaS | C34: 人事給与 | D34: 利用日/利用時間拡大 | E34: 基本 | F34: 一般公開 | G34: 【販売終了】 | H34: SVS002712 | I34: ＧＬＯＶＩＡ ｓｍａｒｔ きらら 人事給与 業務アプリケーション利用サービス ベーシックプラン（５ＩＤ、従業員１００名） | J34: 【販売終了】 ＧＬＯＶＩＡ ｓｍａｒｔ きらら 人事給与 業務アプリケーション利用サービス ベーシックプラン（５ＩＤ、従業員１００名） | K34: 35000 | L34: 月額 | M34: ・利用可能日：毎日 ・利用時間：07:00～24:00 ・5ユーザ限定 ・従業員100名付き ※Q/Aあり（60回/年まで） | N34: 2011-06-01 | P34: 0.75 | Q34: 26250
B35: SaaS | C35: 人事給与 | D35: 利用日/利用時間拡大 | E35: オプション | F35: 一般公開 | G35: 【販売終了】 | H35: SVS002713 | I35: ＧＬＯＶＩＡ ｓｍａｒｔ きらら 人事給与 業務アプリケーション利用サービス ベーシック従業員５０名追加オプション | J35: 【販売終了】 ＧＬＯＶＩＡ ｓｍａｒｔ きらら 人事給与 業務アプリケーション利用サービス ベーシック従業員５０名追加オプション | K35: 10000 | L35: 月額 | M35: ※ベーシック用（従業員 基本＋200名=300名まで） | N35: 2011-06-01 | P35: 0.75 | Q35: 7500
B36: SaaS | C36: 人事給与 | D36: 利用日/利用時間拡大 | E36: 基本 | F36: 一般公開 | G36: 【販売終了】 | H36: SVS002714 | I36: ＧＬＯＶＩＡ ｓｍａｒｔ きらら 人事給与 業務アプリケーション利用サービス プレミアムプラン（５ＩＤ、従業員２００名） | J36: 【販売終了】 ＧＬＯＶＩＡ ｓｍａｒｔ きらら 人事給与 業務アプリケーション利用サービス プレミアムプラン（５ＩＤ、従業員２００名） | K36: 80000 | L36: 月額 | M36: ・利用可能日：毎日 ・利用時間：07:00～24:00 ・５ユーザ限定 ・従業員200名付き ・リモートスポット支援（2回/年まで） ※Q/Aあり（60回/年まで） | N36: 2011-06-01 | P36: 0.75 | Q36: 60000
B37: SaaS | C37: 人事給与 | D37: 利用日/利用時間拡大 | E37: オプション | F37: 一般公開 | G37: 【販売終了】 | H37: SVS002715 | I37: ＧＬＯＶＩＡ ｓｍａｒｔ きらら 人事給与 業務アプリケーション利用サービス プレミアム利用者５０名追加オプション | J37: 【販売終了】 ＧＬＯＶＩＡ ｓｍａｒｔ きらら 人事給与 業務アプリケーション利用サービス プレミアム利用者５０名追加オプション | K37: 10000 | L37: 月額 | M37: ※プレミアム用（従業員 基本＋100名=300名まで） | N37: 2011-06-01 | P37: 0.75 | Q37: 7500
B38: SaaS | C38: 人事給与 | D38: 利用日/利用時間拡大 | E38: 基本 | F38: 一般公開 | G38: 【販売終了】 | H38: SVS002716 | I38: ＧＬＯＶＩＡ ｓｍａｒｔ きらら 人事給与 業務アプリケーション利用サービス ミニベーシックプラン（３ＩＤ、従業員５０名） | J38: 【販売終了】 ＧＬＯＶＩＡ ｓｍａｒｔ きらら 人事給与 業務アプリケーション利用サービス ミニベーシックプラン（３ＩＤ、従業員５０名） | K38: 10000 | L38: 月額 | M38: ・利用可能日：毎日 ・利用時間：07:00～24:00 ・3ユーザ限定 ・従業員50名付き ※Q/Aあり（24回/年まで） | N38: 2011-06-01 | P38: 0.75 | Q38: 7500
B39: SaaS | C39: 人事給与 | D39: 利用日/利用時間拡大 | E39: オプション | F39: 一般公開 | G39: 【販売終了】 | H39: SVS002717 | I39: ＧＬＯＶＩＡ ｓｍａｒｔ きらら 人事給与 業務アプリケーション利用サービス ミニベーシック利用者２５追加オプション | J39: 【販売終了】 ＧＬＯＶＩＡ ｓｍａｒｔ きらら 人事給与 業務アプリケーション利用サービス ミニベーシック利用者２５追加オプション | K39: 3500 | L39: 月額 | M39: ※ミニベーシック用（従業員 基本＋50名=100名まで） | N39: 2011-06-01 | P39: 0.75 | Q39: 2620
B40: SaaS | C40: 会計 | D40: ビジネスパートナー向け | E40: 基本 | F40: 非公開 | G40: 【販売停止2015-10】 | H40: SVS002780 | I40: ＧＬＯＶＩＡ ｓｍａｒｔ 会計 きらら 業務アプリケーション利用サービス コンパクトプラン（１ＩＤ）（ビジネスパートナー向け） | J40: 【販売停止2015-10】ＧＬＯＶＩＡ ｓｍａｒｔ 会計 きらら 業務アプリケーション利用サービス コンパクトプラン（１ＩＤ）（ビジネスパートナー向け） | K40: 1350 | L40: 月額 | M40: ・利用可能日：毎日 ・利用時間：07:00～24:00 ・1ユーザまで ※Q/Aなし（別途オプション） | N40: 2011-05-16 | O40: 1307 | P40: 0.75 | Q40: =ROUNDDOWN(O40*P40,-1) -> 980
B41: SaaS | C41: 会計 | D41: ビジネスパートナー向け | E41: オプション | F41: 非公開 | H41: SVS002794 | I41: ＧＬＯＶＩＡ ｓｍａｒｔ きらら 会計 業務アプリケーション利用サービス コンパクト手形管理オプション（ビジネスパートナー向け） | J41: =CONCATENATE(G41,I41) -> ＧＬＯＶＩＡ ｓｍａｒｔ きらら 会計 業務アプリケーション利用サービス コンパクト手形管理オプション（ビジネスパートナー向け） | K41: 700 | L41: 月額 | M41: BP向けコンパクトプラン用の手形管理OP | N41: 2012-01-06 | O41: 670 | P41: 0.75 | Q41: 500
B42: SaaS | C42: 会計 | D42: ビジネスパートナー向け | E42: オプション | F42: 非公開 | H42: SVS002781 | I42: ＧＬＯＶＩＡ ｓｍａｒｔ 会計 きらら 業務アプリケーション利用サービス Ｑ／Ａオプション（コンパクト用）（ビジネスパートナー向け） | J42: ＧＬＯＶＩＡ ｓｍａｒｔ 会計 きらら 業務アプリケーション利用サービス Ｑ／Ａオプション（コンパクト用）（ビジネスパートナー向け） | K42: 1400 | L42: 月額 | M42: ・24回まで/年 ※コンパクトプラン用 | N42: 2011-05-16 | O42: 1334 | P42: 0.75 | Q42: 1000
B43: SaaS | C43: 会計 | D43: ビジネスパートナー向け | E43: 基本 | F43: 非公開 | G43: 【販売停止2015-10】 | H43: SVS002782 | I43: ＧＬＯＶＩＡ ｓｍａｒｔ 会計 きらら 業務アプリケーション利用サービス ベーシックプラン（１ＩＤ）（ビジネスパートナー向け） | J43: 【販売停止2015-10】ＧＬＯＶＩＡ ｓｍａｒｔ 会計 きらら 業務アプリケーション利用サービス ベーシックプラン（１ＩＤ）（ビジネスパートナー向け） | K43: 4700 | L43: 月額 | M43: ・利用可能日：毎日 ・利用時間：07:00～24:00 ※Q/Aあり（60回/年まで） | N43: 2011-05-16 | O43: 4667 | P43: 0.75 | Q43: 3500
B44: SaaS | C44: 会計 | D44: ビジネスパートナー向け | E44: オプション | F44: 非公開 | H44: SVS002795 | I44: ＧＬＯＶＩＡ ｓｍａｒｔ きらら 会計 業務アプリケーション利用サービス ベーシック手形管理オプション（ビジネスパートナー向け） | J44: =CONCATENATE(G44,I44) -> ＧＬＯＶＩＡ ｓｍａｒｔ きらら 会計 業務アプリケーション利用サービス ベーシック手形管理オプション（ビジネスパートナー向け） | K44: 1400 | L44: 月額 | M44: BP向けベーシックプラン用の手形管理OP | N44: 2012-01-06 | O44: 1334 | P44: 0.75 | Q44: 1000
B45: SaaS | C45: 会計 | D45: ビジネスパートナー向け | E45: オプション | F45: 非公開 | H45: SVS002783 | I45: ＧＬＯＶＩＡ ｓｍａｒｔ 会計 きらら 業務アプリケーション利用サービス 利用者追加（１ＩＤ）オプション（ビジネスパートナー向け） | J45: ＧＬＯＶＩＡ ｓｍａｒｔ 会計 きらら 業務アプリケーション利用サービス 利用者追加（１ＩＤ）オプション（ビジネスパートナー向け） | K45: 2000 | L45: 月額 | M45: ※ベーシックプラン用（基本ID＋6ID=7IDまで） | N45: 2011-05-16 | O45: 2000 | P45: 0.75 | Q45: 1500
B46: SaaS | C46: 人事給与 | D46: ビジネスパートナー向け | E46: 基本 | F46: 非公開 | G46: 【販売停止2015-10】 | H46: SVS002720 | I46: ＧＬＯＶＩＡ ｓｍａｒｔ 人事給与 きらら 業務アプリケーション利用サービス コンパクトプラン（１ＩＤ、従業員５０名）（ビジネスパートナー向け） | J46: 【販売停止2015-10】ＧＬＯＶＩＡ ｓｍａｒｔ 人事給与 きらら 業務アプリケーション利用サービス コンパクトプラン（１ＩＤ、従業員５０名）（ビジネスパートナー向け） | K46: 1350 | L46: 月額 | M46: ・利用可能日：毎日 ・利用時間：07:00～24:00 ・1ユーザ限定 ・従業員50名限定 ※Q/Aなし（別途オプション） | N46: 2011-07-07 | O46: 1307 | P46: 0.75 | Q46: 980
B47: SaaS | C47: 人事給与 | D47: ビジネスパートナー向け | E47: オプション | F47: 非公開 | H47: SVS002721 | I47: ＧＬＯＶＩＡ ｓｍａｒｔ 人事給与 きらら 業務アプリケーション利用サービス Ｑ／Ａオプション（コンパクト用）（ビジネスパートナー向け） | J47: ＧＬＯＶＩＡ ｓｍａｒｔ 人事給与 きらら 業務アプリケーション利用サービス Ｑ／Ａオプション（コンパクト用）（ビジネスパートナー向け） | K47: 1400 | L47: 月額 | M47: ・24回まで/年 ※コンパクトプラン用 | N47: 2011-07-07 | O47: 1334 | P47: 0.75 | Q47: 1000
B48: SaaS | C48: 人事給与 | D48: ビジネスパートナー向け | E48: 基本 | F48: 非公開 | G48: 【販売停止2015-10】 | H48: SVS002722 | I48: ＧＬＯＶＩＡ ｓｍａｒｔ 人事給与 きらら 業務アプリケーション利用サービス ベーシックプラン（５ＩＤ、従業員１００名）（ビジネスパートナー向け） | J48: 【販売停止2015-10】ＧＬＯＶＩＡ ｓｍａｒｔ 人事給与 きらら 業務アプリケーション利用サービス ベーシックプラン（５ＩＤ、従業員１００名）（ビジネスパートナー向け） | K48: 4700 | L48: 月額 | M48: ・利用可能日：毎日 ・利用時間：07:00～24:00 ・5ユーザ限定 ・従業員100名付き ※Q/Aあり（60回/年まで） | N48: 2011-07-07 | O48: 4667 | P48: 0.75 | Q48: 3500
B49: SaaS | C49: 人事給与 | D49: ビジネスパートナー向け | E49: オプション | F49: 非公開 | H49: SVS002723 | I49: ＧＬＯＶＩＡ ｓｍａｒｔ 人事給与 きらら 業務アプリケーション利用サービス ベーシック従業員５０名追加オプション（ビジネスパートナー向け） | J49: ＧＬＯＶＩＡ ｓｍａｒｔ 人事給与 きらら 業務アプリケーション利用サービス ベーシック従業員５０名追加オプション（ビジネスパートナー向け） | K49: 1400 | L49: 月額 | M49: ※ベーシック用（従業員 基本＋200名=300名まで） | N49: 2011-07-07 | O49: 1334 | P49: 0.75 | Q49: 1000
B50: SaaS | C50: 会計 | D50: ミニ年額商品 | E50: 基本 | F50: 非公開 | G50: 【販売停止2015-10】 | H50: SVS002768 | I50: ＧＬＯＶＩＡ ｓｍａｒｔ きらら 会計 業務アプリケーション利用サービス ミニベーシックプラン（１ＩＤ）（年額） | J50: =CONCATENATE(G50,I50) -> 【販売停止2015-10】ＧＬＯＶＩＡ ｓｍａｒｔ きらら 会計 業務アプリケーション利用サービス ミニベーシックプラン（１ＩＤ）（年額） | K50: 110000 | L50: 年額 | M50: ・利用可能日：毎日 ・利用時間：07:00～24:00 ※Q/Aあり（24回/年まで） | N50: 2012-11-01 | P50: 0.75 | Q50: =ROUNDDOWN(K50*P50,-1) -> 82500
B51: SaaS | C51: 会計 | D51: ミニ年額商品 | E51: オプション | F51: 非公開 | G51: 【販売停止2015-10】 | H51: SVS002769 | I51: ＧＬＯＶＩＡ ｓｍａｒｔ きらら 会計 業務アプリケーション利用サービス ミニベーシック利用者追加（１ＩＤ）オプション（年額） | J51: =CONCATENATE(G51,I51) -> 【販売停止2015-10】ＧＬＯＶＩＡ ｓｍａｒｔ きらら 会計 業務アプリケーション利用サービス ミニベーシック利用者追加（１ＩＤ）オプション（年額） | K51: 55000 | L51: 年額 | M51: ミニベーシック用の手形管理OP | N51: 2012-11-01 | P51: 0.75 | Q51: 41250
B52: SaaS | C52: 会計 | D52: ミニ年額商品 | E52: オプション | F52: 非公開 | G52: 【販売停止2015-10】 | H52: SVS002796 | I52: ＧＬＯＶＩＡ ｓｍａｒｔ きらら 会計 業務アプリケーション利用サービス ミニベーシック手形管理オプション（年額） | J52: =CONCATENATE(G52,I52) -> 【販売停止2015-10】ＧＬＯＶＩＡ ｓｍａｒｔ きらら 会計 業務アプリケーション利用サービス ミニベーシック手形管理オプション（年額） | K52: 35000 | L52: 年額 | M52: ※ミニベーシック用（基本ID＋2ID=3IDまで） | N52: 2012-11-01 | P52: 0.75 | Q52: 26250
B53: SaaS | C53: 人事給与 | D53: ミニ年額商品 | E53: 基本 | F53: 非公開 | G53: 【販売停止2015-10】 | H53: SVS002718 | I53: ＧＬＯＶＩＡ ｓｍａｒｔ きらら 人事給与 業務アプリケーション利用サービス ミニベーシックプラン（３ＩＤ、従業員５０名）（年額） | J53: =CONCATENATE(G53,I53) -> 【販売停止2015-10】ＧＬＯＶＩＡ ｓｍａｒｔ きらら 人事給与 業務アプリケーション利用サービス ミニベーシックプラン（３ＩＤ、従業員５０名）（年額） | K53: 110000 | L53: 年額 | M53: ・利用可能日：毎日 ・利用時間：07:00～24:00 ・3ユーザ限定 ・従業員50名付き ※Q/Aあり（24回/年まで） | N53: 2012-11-01 | P53: 0.75 | Q53: 82500
B54: SaaS | C54: 人事給与 | D54: ミニ年額商品 | E54: オプション | F54: 非公開 | G54: 【販売停止2015-10】 | H54: SVS002719 | I54: ＧＬＯＶＩＡ ｓｍａｒｔ きらら 人事給与 業務アプリケーション利用サービス ミニベーシック従業員２５名追加オプション（年額） | J54: =CONCATENATE(G54,I54) -> 【販売停止2015-10】ＧＬＯＶＩＡ ｓｍａｒｔ きらら 人事給与 業務アプリケーション利用サービス ミニベーシック従業員２５名追加オプション（年額） | K54: 38500 | L54: 年額 | M54: ※ミニベーシック用（従業員 基本＋50名=100名まで） | N54: 2012-11-01 | P54: 0.75 | Q54: 28870
B55: PKG | C55: 会計 | D55: 通常商品 | E55: 基本 | F55: 一般公開 | H55: A296CMHM | I55: ＧＬＯＶＩＡ ｓｍａｒｔ 会計 きらら Ｖ１ メディアパック | J55: =CONCATENATE(G55,I55) -> ＧＬＯＶＩＡ ｓｍａｒｔ 会計 きらら Ｖ１ メディアパック | K55: 5000 | L55: 一括 | N55: 2010-12-01 | P55: 0.63 | Q55: 3150
B56: PKG | C56: 会計 | D56: 通常商品 | E56: 基本 | F56: 一般公開 | H56: A2969MHN | I56: ＧＬＯＶＩＡ ｓｍａｒｔ 会計 きらら Ｖ１ 基本ライセンス（２ユーザライセンス付） | J56: ＧＬＯＶＩＡ ｓｍａｒｔ 会計 きらら Ｖ１ 基本ライセンス（２ユーザライセンス付） | K56: 460000 | L56: 一括 | N56: 2010-12-01 | P56: 0.63 | Q56: 289800
B57: PKG | C57: 会計 | D57: 通常商品 | E57: オプション | F57: 一般公開 | H57: A2969MHP | I57: ＧＬＯＶＩＡ ｓｍａｒｔ 会計 きらら Ｖ１ 追加１ユーザライセンス | J57: ＧＬＯＶＩＡ ｓｍａｒｔ 会計 きらら Ｖ１ 追加１ユーザライセンス | K57: 250000 | L57: 一括 | M57: 基本ID＋5IDまで | N57: 2010-12-01 | P57: 0.63 | Q57: 157500
B58: PKG | C58: 会計 | D58: 通常商品 | E58: オプション | F58: 一般公開 | H58: A2969PSW | I58: ＧＬＯＶＩＡ ｓｍａｒｔ きらら 会計 Ｖ１ 手形管理オプション 基本ライセンス | J58: =CONCATENATE(G58,I58) -> ＧＬＯＶＩＡ ｓｍａｒｔ きらら 会計 Ｖ１ 手形管理オプション 基本ライセンス | K58: 250000 | L58: 一括 | N58: 2011-12-28 | P58: 0.63 | Q58: 157500
B59: PKG-ME&S | C59: 会計 | D59: 通常商品 | E59: 基本 | F59: 一般公開 | H59: A2960MHNM1 | I59: ＧＬＯＶＩＡ ｓｍａｒｔ 会計 きらら Ｖ１ 基本ライセンス（２ユーザライセンス付） プログラムサポート | J59: ＧＬＯＶＩＡ ｓｍａｒｔ 会計 きらら Ｖ１ 基本ライセンス（２ユーザライセンス付） プログラムサポート | K59: 69000 | L59: 年額 | N59: 2010-12-01 | P59: 0.63 | Q59: 43470
B60: PKG-ME&S | C60: 会計 | D60: 通常商品 | E60: オプション | F60: 一般公開 | H60: A2960MHPM1 | I60: ＧＬＯＶＩＡ ｓｍａｒｔ 会計 きらら Ｖ１ 追加１ユーザライセンス プログラムサポート | J60: ＧＬＯＶＩＡ ｓｍａｒｔ 会計 きらら Ｖ１ 追加１ユーザライセンス プログラムサポート | K60: 37500 | L60: 年額 | N60: 2010-12-01 | P60: 0.63 | Q60: 23620
B61: PKG-ME&S | C61: 会計 | D61: 通常商品 | E61: オプション | F61: 一般公開 | H61: A2960PSWM1 | I61: ＧＬＯＶＩＡ ｓｍａｒｔ きらら 会計 Ｖ１ 手形管理オプション 基本ライセンス プログラムサポート | J61: =CONCATENATE(G61,I61) -> ＧＬＯＶＩＡ ｓｍａｒｔ きらら 会計 Ｖ１ 手形管理オプション 基本ライセンス プログラムサポート | K61: 37500 | L61: 年額 | N61: 2011-12-28 | P61: 0.63 | Q61: 23620
B62: PKG-ME&S | C62: 会計 | D62: 通常商品 | E62: 基本 | F62: 一般公開 | H62: A2960MHNM | I62: ＧＬＯＶＩＡ ｓｍａｒｔ 会計 きらら Ｖ１ 基本ライセンス（２ユーザライセンス付） プログラムサポート | J62: ＧＬＯＶＩＡ ｓｍａｒｔ 会計 きらら Ｖ１ 基本ライセンス（２ユーザライセンス付） プログラムサポート | K62: 6900 | L62: 月額 | N62: 2010-12-01 | P62: 0.63 | Q62: 4340
B63: PKG-ME&S | C63: 会計 | D63: 通常商品 | E63: オプション | F63: 一般公開 | H63: A2960MHPM | I63: ＧＬＯＶＩＡ ｓｍａｒｔ 会計 きらら Ｖ１ 追加１ユーザライセンス プログラムサポート | J63: ＧＬＯＶＩＡ ｓｍａｒｔ 会計 きらら Ｖ１ 追加１ユーザライセンス プログラムサポート | K63: 3750 | L63: 月額 | N63: 2010-12-01 | P63: 0.63 | Q63: 2360
B64: PKG-ME&S | C64: 会計 | D64: 通常商品 | E64: オプション | F64: 一般公開 | H64: A2960PSWM | I64: ＧＬＯＶＩＡ ｓｍａｒｔ きらら 会計 Ｖ１ 手形管理オプション 基本ライセンス プログラムサポート | J64: =CONCATENATE(G64,I64) -> ＧＬＯＶＩＡ ｓｍａｒｔ きらら 会計 Ｖ１ 手形管理オプション 基本ライセンス プログラムサポート | K64: 3750 | L64: 月額 | N64: 2011-12-28 | P64: 0.63 | Q64: 2360
B65: PKG | C65: 人事給与 | D65: 通常商品 | E65: 基本 | F65: 一般公開 | H65: A296CP81 | I65: ＧＬＯＶＩＡ ｓｍａｒｔ きらら 人事給与 Ｖ１ メディアパック | J65: =CONCATENATE(G65,I65) -> ＧＬＯＶＩＡ ｓｍａｒｔ きらら 人事給与 Ｖ１ メディアパック | K65: 5000 | L65: 一括 | N65: 2011-07-15 | P65: 0.63 | Q65: 3150
B66: PKG | C66: 人事給与 | D66: 通常商品 | E66: 基本 | F66: 一般公開 | H66: A2969P82 | I66: ＧＬＯＶＩＡ ｓｍａｒｔ きらら 人事給与 Ｖ１ 基本ライセンス（２ユーザライセンス付） | J66: ＧＬＯＶＩＡ ｓｍａｒｔ きらら 人事給与 Ｖ１ 基本ライセンス（２ユーザライセンス付） | K66: 460000 | L66: 一括 | N66: 2011-07-15 | P66: 0.63 | Q66: 289800
B67: PKG | C67: 人事給与 | D67: 通常商品 | E67: オプション | F67: 一般公開 | H67: A2969P83 | I67: ＧＬＯＶＩＡ ｓｍａｒｔ きらら 人事給与 Ｖ１ 追加１ユーザライセンス | J67: ＧＬＯＶＩＡ ｓｍａｒｔ きらら 人事給与 Ｖ１ 追加１ユーザライセンス | K67: 250000 | L67: 一括 | N67: 2011-07-15 | P67: 0.63 | Q67: 157500
B68: PKG-ME&S | C68: 人事給与 | D68: 通常商品 | E68: 基本 | F68: 一般公開 | H68: A2960P82M1 | I68: ＧＬＯＶＩＡ ｓｍａｒｔ きらら 人事給与 Ｖ１ 基本ライセンス（２ユーザライセンス付） プログラムサポート | J68: ＧＬＯＶＩＡ ｓｍａｒｔ きらら 人事給与 Ｖ１ 基本ライセンス（２ユーザライセンス付） プログラムサポート | K68: 69000 | L68: 年額 | N68: 2011-07-15 | P68: 0.63 | Q68: 43470
B69: PKG-ME&S | C69: 人事給与 | D69: 通常商品 | E69: オプション | F69: 一般公開 | H69: A2960P83M1 | I69: ＧＬＯＶＩＡ ｓｍａｒｔ きらら 人事給与 Ｖ１ 追加１ユーザライセンス プログラムサポート | J69: =CONCATENATE(G69,I69) -> ＧＬＯＶＩＡ ｓｍａｒｔ きらら 人事給与 Ｖ１ 追加１ユーザライセンス プログラムサポート | K69: 37500 | L69: 年額 | N69: 2011-07-15 | P69: 0.63 | Q69: 23620
B70: PKG-ME&S | C70: 人事給与 | D70: 通常商品 | E70: 基本 | F70: 一般公開 | H70: A2960P82M | I70: ＧＬＯＶＩＡ ｓｍａｒｔ きらら 人事給与 Ｖ１ 基本ライセンス（２ユーザライセンス付） プログラムサポート | J70: ＧＬＯＶＩＡ ｓｍａｒｔ きらら 人事給与 Ｖ１ 基本ライセンス（２ユーザライセンス付） プログラムサポート | K70: 6900 | L70: 月額 | N70: 2011-07-15 | P70: 0.63 | Q70: 4340
B71: PKG-ME&S | C71: 人事給与 | D71: 通常商品 | E71: オプション | F71: 一般公開 | H71: A2960P83M | I71: ＧＬＯＶＩＡ ｓｍａｒｔ きらら 人事給与 Ｖ１ 追加１ユーザライセンス プログラムサポート | J71: ＧＬＯＶＩＡ ｓｍａｒｔ きらら 人事給与 Ｖ１ 追加１ユーザライセンス プログラムサポート | K71: 3750 | L71: 月額 | N71: 2011-07-15 | P71: 0.63 | Q71: 2360
B72: PKG | C72: 会計 | D72: BP移行用 | E72: 基本 | F72: 非公開 | H72: A2969P9T | I72: ＧＬＯＶＩＡ ｓｍａｒｔ きらら 会計 Ｖ１ 基本ライセンス（２ユーザライセンス付） ＢＰ移行 | J72: ＧＬＯＶＩＡ ｓｍａｒｔ きらら 会計 Ｖ１ 基本ライセンス（２ユーザライセンス付） ＢＰ移行 | K72: 230000 | L72: 一括 | M72: ・メディア、ME&Sは通常商品を利用 | N72: 2011-08-24 | P72: 0.63 | Q72: 144900
B73: PKG | C73: 会計 | D73: BP移行用 | E73: オプション | F73: 非公開 | H73: A2969P9U | I73: ＧＬＯＶＩＡ ｓｍａｒｔ きらら 会計 Ｖ１ 追加１ユーザライセンス ＢＰ移行 | J73: ＧＬＯＶＩＡ ｓｍａｒｔ きらら 会計 Ｖ１ 追加１ユーザライセンス ＢＰ移行 | K73: 125000 | L73: 一括 | N73: 2011-08-24 | P73: 0.63 | Q73: 78750
B74: PKG | C74: 会計 | D74: BP移行用 | E74: オプション | F74: 非公開 | H74: A2969PSX | I74: ＧＬＯＶＩＡ ｓｍａｒｔ きらら 会計 Ｖ１ 手形管理オプション 基本ライセンス ＢＰ移行 | J74: =CONCATENATE(G74,I74) -> ＧＬＯＶＩＡ ｓｍａｒｔ きらら 会計 Ｖ１ 手形管理オプション 基本ライセンス ＢＰ移行 | K74: 125000 | L74: 一括 | N74: 2011-08-24 | P74: 0.63 | Q74: 78750
B75: PKG | C75: 人事給与 | D75: BP移行用 | E75: 基本 | F75: 非公開 | H75: A2969P9V | I75: ＧＬＯＶＩＡ ｓｍａｒｔ きらら 人事給与 Ｖ１ 基本ライセンス（２ユーザライセンス付） ＢＰ移行 | J75: ＧＬＯＶＩＡ ｓｍａｒｔ きらら 人事給与 Ｖ１ 基本ライセンス（２ユーザライセンス付） ＢＰ移行 | K75: 230000 | L75: 一括 | M75: ・メディア、ME&Sは通常商品を利用 | N75: 2011-08-24 | P75: 0.63 | Q75: 144900
B76: PKG | C76: 人事給与 | D76: BP移行用 | E76: オプション | F76: 非公開 | H76: A2969P9W | I76: ＧＬＯＶＩＡ ｓｍａｒｔ きらら 人事給与 Ｖ１ 追加１ユーザライセンス ＢＰ移行 | J76: ＧＬＯＶＩＡ ｓｍａｒｔ きらら 人事給与 Ｖ１ 追加１ユーザライセンス ＢＰ移行 | K76: 125000 | L76: 一括 | N76: 2011-08-24 | P76: 0.63 | Q76: 78750
B77: PKG | C77: 固定資産 | D77: ｽﾀﾝﾄﾞｱﾛﾝ版(STD) | E77: 基本 | F77: 一般公開 | H77: A296CPSY | I77: 減価償却応援 | J77: 減価償却応援 | K77: 148000 | L77: 一括 | M77: ｽﾀﾝﾄﾞｱﾛﾝ版 | N77: 2012-02-06 | P77: 0.65 | Q77: 96200
B78: PKG-ME&S | C78: 固定資産 | D78: ｽﾀﾝﾄﾞｱﾛﾝ版(STD) | E78: 基本 | F78: 一般公開 | H78: A2960PSYM1 | I78: 減価償却応援 プログラムサポート | J78: 減価償却応援 プログラムサポート | K78: 30000 | L78: 年額 | M78: ｽﾀﾝﾄﾞｱﾛﾝ版：ME&S | N78: 2012-02-06 | P78: 0.9 | Q78: 27000
B79: PKG | C79: 固定資産 | D79: ﾈｯﾄﾜｰｸ版(NW) | E79: 基本 | F79: 一般公開 | H79: A296CPT0 | I79: 減価償却応援 ３ユーザ | J79: 減価償却応援 ３ユーザ | K79: 350000 | L79: 一括 | M79: ﾈｯﾄﾜｰｸ版：3U、※ﾈｯﾄﾜｰｸ基本ﾊﾟｯｸ 5ﾕｰｻﾞ必須 | N79: 2012-02-06 | P79: 0.65 | Q79: 227500
B80: PKG-ME&S | C80: 固定資産 | D80: ﾈｯﾄﾜｰｸ版(NW) | E80: 基本 | F80: 一般公開 | H80: A2960PT0M1 | I80: 減価償却応援 ３ユーザ プログラムサポート | J80: =CONCATENATE(G80,I80) -> 減価償却応援 ３ユーザ プログラムサポート | K80: 50000 | L80: 年額 | M80: ﾈｯﾄﾜｰｸ版：3U、ME&S | N80: 2012-02-06 | P80: 0.9 | Q80: 45000
B81: PKG | C81: 固定資産 | D81: ﾈｯﾄﾜｰｸ版(NW) | E81: 基本 | F81: 一般公開 | H81: A296CPT1 | I81: 減価償却応援 ５ユーザ | J81: 減価償却応援 ５ユーザ | K81: 450000 | L81: 一括 | M81: ﾈｯﾄﾜｰｸ版：5U、※ﾈｯﾄﾜｰｸ基本ﾊﾟｯｸ 5ﾕｰｻﾞ必須 | N81: 2012-02-06 | P81: 0.65 | Q81: 292500
B82: PKG-ME&S | C82: 固定資産 | D82: ﾈｯﾄﾜｰｸ版(NW) | E82: 基本 | F82: 一般公開 | H82: A2960PT1M1 | I82: 減価償却応援 ５ユーザ プログラムサポート | J82: =CONCATENATE(G82,I82) -> 減価償却応援 ５ユーザ プログラムサポート | K82: 75000 | L82: 年額 | M82: ﾈｯﾄﾜｰｸ版：5U、ME&S | N82: 2012-02-06 | P82: 0.9 | Q82: 67500
B83: PKG | C83: 固定資産 | D83: ﾈｯﾄﾜｰｸ版(NW) | E83: オプション | F83: 一般公開 | H83: A2969PT2 | I83: 減価償却応援 追加ライセンス５ユーザ | J83: 減価償却応援 追加ライセンス５ユーザ | K83: 250000 | L83: 一括 | M83: ﾈｯﾄﾜｰｸ版：+5U、※ﾈｯﾄﾜｰｸ基本ﾊﾟｯｸ 追加5U必須 | N83: 2012-02-06 | P83: 0.65 | Q83: 162500
B84: PKG-ME&S | C84: 固定資産 | D84: ﾈｯﾄﾜｰｸ版(NW) | E84: オプション | F84: 一般公開 | H84: A2960PT2M1 | I84: 減価償却応援 追加ライセンス５ユーザ プログラムサポート | J84: 減価償却応援 追加ライセンス５ユーザ プログラムサポート | K84: 30000 | L84: 年額 | M84: ﾈｯﾄﾜｰｸ版：+5U、ME&S | N84: 2012-02-06 | P84: 0.9 | Q84: 27000
B85: PKG | C85: 固定資産 | D85: ﾈｯﾄﾜｰｸ基本ﾊﾟｯｸ | E85: オプション | F85: 一般公開 | H85: A296CPT3 | I85: ネットワーク基本パック ５ユーザ | J85: ネットワーク基本パック ５ユーザ | K85: 150000 | L85: 一括 | M85: ﾈｯﾄﾜｰｸ版：基本P | N85: 2012-02-06 | P85: 0.65 | Q85: 97500
B86: PKG | C86: 固定資産 | D86: ﾈｯﾄﾜｰｸ基本ﾊﾟｯｸ | E86: オプション | F86: 一般公開 | H86: A2969PT4 | I86: ネットワーク基本パック 追加５Ｕ | J86: ネットワーク基本パック 追加５Ｕ | K86: 100000 | L86: 一括 | M86: ﾈｯﾄﾜｰｸ版：+基本P5U | N86: 2012-02-06 | P86: 0.65 | Q86: 65000
B87: PKG | C87: 固定資産 | D87: ｱｯﾌﾟｸﾞﾚｰﾄﾞ(STD→NW) | E87: オプション | F87: 一般公開 | H87: A296CPT5 | I87: 減価償却応援 ３ユーザ アップグレード | J87: 減価償却応援 ３ユーザ アップグレード | K87: 200000 | L87: 一括 | M87: ｽﾀﾝﾄﾞｱﾛﾝ版：NW版3Uｱｯﾌﾟｸﾞﾚｰﾄﾞ、※ﾈｯﾄﾜｰｸ基本P 5U必須 | N87: 2012-02-06 | P87: 0.65 | Q87: 130000
B88: PKG | C88: 固定資産 | D88: ｱｯﾌﾟｸﾞﾚｰﾄﾞ(STD→NW) | E88: オプション | F88: 一般公開 | H88: A296CPT6 | I88: 減価償却応援 ５ユーザ アップグレード | J88: 減価償却応援 ５ユーザ アップグレード | K88: 300000 | L88: 一括 | M88: ｽﾀﾝﾄﾞｱﾛﾝ版：NW版5Uｱｯﾌﾟｸﾞﾚｰﾄﾞ、※ﾈｯﾄﾜｰｸ基本P 5Uスタンドアロン必須 | N88: 2012-02-06 | P88: 0.65 | Q88: 195000
B89: PKG | C89: 会計 | D89: Glacio連携用 ミツイワ情報様用 | E89: 基本 | F89: 非公開 | H89: A296CQVA | I89: ＧＬＯＶＩＡ ｓｍａｒｔ 会計 きらら Ｖ１ メディアパック Glacio連携用 | J89: ＧＬＯＶＩＡ ｓｍａｒｔ 会計 きらら Ｖ１ メディアパック Glacio連携用 | K89: 5000 | L89: 一括 | M89: ・メディアは、通常商品にGlacio連携DVDを1枚追加したもの ・ME&Sは通常商品を利用 | N89: 2012-04-11 | P89: 0.63 | Q89: 3150
B90: PKG | C90: 会計 | E90: 基本 | F90: 非公開 | H90: A2969QVB | I90: ＧＬＯＶＩＡ ｓｍａｒｔ 会計 きらら Ｖ１ 基本ライセンス（２ユーザライセンス付） Glacio連携用 | J90: ＧＬＯＶＩＡ ｓｍａｒｔ 会計 きらら Ｖ１ 基本ライセンス（２ユーザライセンス付） Glacio連携用 | K90: 460000 | L90: 一括 | N90: 2012-04-11 | P90: 0.63 | Q90: 289800
B91: PKG | C91: 人事給与 | D91: Glacio連携用 ミツイワ情報様用 | E91: 基本 | F91: 非公開 | H91: A296CQVC | I91: ＧＬＯＶＩＡ ｓｍａｒｔ きらら 人事給与 Ｖ１ メディアパック Glacio連携用 | J91: ＧＬＯＶＩＡ ｓｍａｒｔ きらら 人事給与 Ｖ１ メディアパック Glacio連携用 | K91: 5000 | L91: 一括 | M91: ・メディアは、通常商品にGlacio連携DVDを1枚追加したもの ・ME&Sは通常商品を利用 | N91: 2012-04-11 | P91: 0.63 | Q91: 3150
B92: PKG | C92: 人事給与 | E92: 基本 | F92: 非公開 | H92: A2969QVD | I92: ＧＬＯＶＩＡ ｓｍａｒｔ きらら 人事給与 Ｖ１ 基本ライセンス（２ユーザライセンス付） Glacio連携用 | J92: ＧＬＯＶＩＡ ｓｍａｒｔ きらら 人事給与 Ｖ１ 基本ライセンス（２ユーザライセンス付） Glacio連携用 | K92: 460000 | L92: 一括 | N92: 2012-04-11 | P92: 0.63 | Q92: 289800
B93: PKG | C93: 販売 | D93: 通常商品 | E93: 基本 | F93: 一般公開 | H93: A296CRS8 | I93: ＧＬＯＶＩＡ ｓｍａｒｔ きらら 販売 Ｖ１ スタンダード （１ユーザライセンス付） | J93: ＧＬＯＶＩＡ ｓｍａｒｔ きらら 販売 Ｖ１ スタンダード （１ユーザライセンス付） | K93: 1500000 | L93: 一括 | M93: ・メディア媒体（DVD-ROM） | N93: 2012-09-21 | P93: 0.63 | Q93: 945000
B94: PKG | C94: 販売 | D94: 通常商品 | E94: オプション | F94: 一般公開 | H94: A2969RS9 | I94: ＧＬＯＶＩＡ ｓｍａｒｔ きらら 販売 Ｖ１ スタンダード サーバ増設ライセンス | J94: ＧＬＯＶＩＡ ｓｍａｒｔ きらら 販売 Ｖ１ スタンダード サーバ増設ライセンス | K94: 1500000 | L94: 一括 | M94: ・ライセンス情報 | N94: 2012-09-21 | P94: 0.63 | Q94: 945000
B95: PKG | C95: 販売 | D95: 通常商品 | E95: オプション | F95: 一般公開 | H95: A2969RSA | I95: ＧＬＯＶＩＡ ｓｍａｒｔ きらら 販売 Ｖ１ スタンダード 追加１ユーザライセンス | J95: ＧＬＯＶＩＡ ｓｍａｒｔ きらら 販売 Ｖ１ スタンダード 追加１ユーザライセンス | K95: 50000 | L95: 一括 | M95: ・ライセンス情報 | N95: 2012-09-21 | P95: 0.63 | Q95: 31500
B96: PKG-ME&S | C96: 販売 | D96: 通常商品 | E96: 基本 | F96: 一般公開 | H96: A2960RS8L1 | I96: ＧＬＯＶＩＡ ｓｍａｒｔ きらら 販売 Ｖ１ スタンダード（１ユーザライセンス付き） レベルアップサービス | J96: ＧＬＯＶＩＡ ｓｍａｒｔ きらら 販売 Ｖ１ スタンダード（１ユーザライセンス付き） レベルアップサービス | K96: 225000 | L96: 年額 | N96: 2012-09-21 | P96: 0.63 | Q96: 141750
B97: PKG-ME&S | C97: 販売 | D97: 通常商品 | E97: オプション | F97: 一般公開 | H97: A2960RS9L1 | I97: ＧＬＯＶＩＡ ｓｍａｒｔ きらら 販売 Ｖ１ スタンダード サーバ増設ライセンス レベルアップサービス | J97: ＧＬＯＶＩＡ ｓｍａｒｔ きらら 販売 Ｖ１ スタンダード サーバ増設ライセンス レベルアップサービス | K97: 225000 | L97: 年額 | N97: 2012-09-21 | P97: 0.63 | Q97: 141750
B98: PKG-ME&S | C98: 販売 | D98: 通常商品 | E98: オプション | F98: 一般公開 | H98: A2960RSAL1 | I98: ＧＬＯＶＩＡ ｓｍａｒｔ きらら 販売 Ｖ１ スタンダード 追加１ユーザライセンス レベルアップサービス | J98: ＧＬＯＶＩＡ ｓｍａｒｔ きらら 販売 Ｖ１ スタンダード 追加１ユーザライセンス レベルアップサービス | K98: 7500 | L98: 年額 | N98: 2012-09-21 | P98: 0.63 | Q98: 4720
B99: PKG-ME&S | C99: 販売 | D99: 通常商品 | E99: 基本 | F99: 一般公開 | H99: A2960RS8L | I99: ＧＬＯＶＩＡ ｓｍａｒｔ きらら 販売 Ｖ１ スタンダード（１ユーザライセンス付き） レベルアップサービス | J99: ＧＬＯＶＩＡ ｓｍａｒｔ きらら 販売 Ｖ１ スタンダード（１ユーザライセンス付き） レベルアップサービス | K99: 22500 | L99: 月額 | N99: 2012-09-21 | P99: 0.63 | Q99: 14170
B100: PKG-ME&S | C100: 販売 | D100: 通常商品 | E100: オプション | F100: 一般公開 | H100: A2960RS9L | I100: ＧＬＯＶＩＡ ｓｍａｒｔ きらら 販売 Ｖ１ スタンダード サーバ増設ライセンス レベルアップサービス | J100: ＧＬＯＶＩＡ ｓｍａｒｔ きらら 販売 Ｖ１ スタンダード サーバ増設ライセンス レベルアップサービス | K100: 22500 | L100: 月額 | N100: 2012-09-21 | P100: 0.63 | Q100: 14170
B101: PKG-ME&S | C101: 販売 | D101: 通常商品 | E101: オプション | F101: 一般公開 | H101: A2960RSAL | I101: ＧＬＯＶＩＡ ｓｍａｒｔ きらら 販売 Ｖ１ スタンダード 追加１ユーザライセンス レベルアップサービス | J101: ＧＬＯＶＩＡ ｓｍａｒｔ きらら 販売 Ｖ１ スタンダード 追加１ユーザライセンス レベルアップサービス | K101: 750 | L101: 月額 | N101: 2012-09-21 | P101: 0.63 | Q101: 470
B102: PKG | C102: 販売 | D102: エントリーパック（販売・会計） | E102: 基本 | F102: 非公開 | H102: A296CRSB | I102: ＧＬＯＶＩＡ ｓｍａｒｔ きらら 販売 Ｖ１ 販売・会計エントリパック （５ユーザライセンス付） | J102: ＧＬＯＶＩＡ ｓｍａｒｔ きらら 販売 Ｖ１ 販売・会計エントリパック （５ユーザライセンス付） | K102: 750000 | L102: 一括 | M102: ・メディア媒体（DVD-ROM） ※通常版にアップグレード可能 | N102: 2012-09-21 | P102: 0.63 | Q102: 472500
B103: PKG-ME&S | C103: 販売 | D103: エントリーパック（販売・会計） | E103: 基本 | F103: 非公開 | G103: 【販売終了】 | H103: A2960RSBM | I103: ＧＬＯＶＩＡ ｓｍａｒｔ きらら 販売 Ｖ１ 販売・会計エントリパック（５ユーザライセンス付） プログラムサポート | J103: 【販売終了】 ＧＬＯＶＩＡ ｓｍａｒｔ きらら 販売 Ｖ１ 販売・会計エントリパック（５ユーザライセンス付） プログラムサポート | K103: 113000 | L103: 年額 | P103: 0.63 | Q103: 71190
B104: PKG-ME&S | C104: 販売 | D104: エントリーパック（販売・会計） | E104: 基本 | F104: 非公開 | G104: 【販売終了】 | H104: A2960RSBM1 | I104: ＧＬＯＶＩＡ ｓｍａｒｔ きらら 販売 Ｖ１ 販売・会計エントリパック（５ユーザライセンス付） プログラムサポート | J104: 【販売終了】 ＧＬＯＶＩＡ ｓｍａｒｔ きらら 販売 Ｖ１ 販売・会計エントリパック（５ユーザライセンス付） プログラムサポート | K104: 11300 | L104: 月額 | P104: 0.63 | Q104: 7110
B105: PKG-ME&S | C105: 販売 | D105: エントリーパック（販売・会計） | E105: 基本 | F105: 非公開 | H105: A2960RSBL1 | I105: ＧＬＯＶＩＡ ｓｍａｒｔ きらら 販売 Ｖ１ 販売・会計エントリパック（５ユーザラインセス付） レベルアップサービス | J105: ＧＬＯＶＩＡ ｓｍａｒｔ きらら 販売 Ｖ１ 販売・会計エントリパック（５ユーザラインセス付） レベルアップサービス | K105: 113000 | L105: 年額 | N105: 2012-09-21 | P105: 0.63 | Q105: 71190
B106: PKG-ME&S | C106: 販売 | D106: エントリーパック（販売・会計） | E106: 基本 | F106: 非公開 | H106: A2960RSBL | I106: ＧＬＯＶＩＡ ｓｍａｒｔ きらら 販売 Ｖ１ 販売・会計エントリパック（５ユーザラインセス付） レベルアップサービス | J106: ＧＬＯＶＩＡ ｓｍａｒｔ きらら 販売 Ｖ１ 販売・会計エントリパック（５ユーザラインセス付） レベルアップサービス | K106: 11300 | L106: 月額 | N106: 2012-09-21 | P106: 0.63 | Q106: 7110
B107: PKG | C107: 販売 | D107: エントリパックの追加ユーザライセンス。隠し型名 | E107: オプション | F107: 非公開 | H107: A2969RSC | I107: ＧＬＯＶＩＡ ｓｍａｒｔ きらら 販売 Ｖ１ 販売・会計エントリパック 追加１ユーザライセンス | J107: ＧＬＯＶＩＡ ｓｍａｒｔ きらら 販売 Ｖ１ 販売・会計エントリパック 追加１ユーザライセンス | K107: 250000 | L107: 一括 | N107: 2013-03-14 | P107: 0.63 | Q107: 157500
B108: PKG-ME&S | C108: 販売 | D108: エントリパックの追加ユーザライセンスのME&S。隠し型名 | E108: オプション | F108: 非公開 | G108: 【販売終了】 | H108: A2960RSCM | I108: ＧＬＯＶＩＡ ｓｍａｒｔ きらら 販売 Ｖ１ 販売・会計エントリパック 追加１ユーザライセンス プログラムサポート | J108: 【販売終了】 ＧＬＯＶＩＡ ｓｍａｒｔ きらら 販売 Ｖ１ 販売・会計エントリパック 追加１ユーザライセンス プログラムサポート | K108: 37500 | L108: 年額 | P108: 0.63 | Q108: 23620
B109: PKG-ME&S | C109: 販売 | D109: エントリパックの追加ユーザライセンスのME&S。隠し型名 | E109: オプション | F109: 非公開 | G109: 【販売終了】 | H109: A2960RSCM1 | I109: ＧＬＯＶＩＡ ｓｍａｒｔ きらら 販売 Ｖ１ 販売・会計エントリパック 追加１ユーザライセンス プログラムサポート | J109: 【販売終了】 ＧＬＯＶＩＡ ｓｍａｒｔ きらら 販売 Ｖ１ 販売・会計エントリパック 追加１ユーザライセンス プログラムサポート | K109: 3750 | L109: 月額 | P109: 0.63 | Q109: 2360
B110: PKG-ME&S | C110: 販売 | D110: エントリパックの追加ユーザライセンスのME&S。隠し型名 | E110: オプション | F110: 非公開 | H110: A2960RSCL1 | I110: ＧＬＯＶＩＡ ｓｍａｒｔ きらら 販売 Ｖ１ 販売・会計エントリパック 追加１ユーザライセンス レベルアップサービス | J110: ＧＬＯＶＩＡ ｓｍａｒｔ きらら 販売 Ｖ１ 販売・会計エントリパック 追加１ユーザライセンス レベルアップサービス | K110: 37500 | L110: 年額 | N110: 2013-03-14 | P110: 0.63 | Q110: 23620
B111: PKG-ME&S | C111: 販売 | D111: エントリパックの追加ユーザライセンスのME&S。隠し型名 | E111: オプション | F111: 非公開 | H111: A2960RSCL | I111: ＧＬＯＶＩＡ ｓｍａｒｔ きらら 販売 Ｖ１ 販売・会計エントリパック 追加１ユーザライセンス レベルアップサービス | J111: ＧＬＯＶＩＡ ｓｍａｒｔ きらら 販売 Ｖ１ 販売・会計エントリパック 追加１ユーザライセンス レベルアップサービス | K111: 3750 | L111: 月額 | N111: 2013-03-14 | P111: 0.63 | Q111: 2360
B112: PKG | C112: 販売 | D112: エントリーパック→スタンダード移行 | E112: オプション | F112: 非公開 | H112: A296CTDT | I112: ＧＬＯＶＩＡ ｓｍａｒｔ きらら 販売 Ｖ１ スタンダード（５ＵＬ付）エントリパック移行 | J112: =CONCATENATE(G112,I112) -> ＧＬＯＶＩＡ ｓｍａｒｔ きらら 販売 Ｖ１ スタンダード（５ＵＬ付）エントリパック移行 | K112: 950000 | L112: 一括 | N112: 2013-03-14 | P112: 0.63 | Q112: 598500
B113: PKG-ME&S | C113: 販売 | D113: エントリーパック→スタンダード移行 | E113: オプション | F113: 非公開 | H113: A2960TDTL1 | I113: ＧＬＯＶＩＡ ｓｍａｒｔ きらら 販売 Ｖ１ スタンダード（５ＵＬ付）エントリパック移行 レベルアップサービス | J113: =CONCATENATE(G113,I113) -> ＧＬＯＶＩＡ ｓｍａｒｔ きらら 販売 Ｖ１ スタンダード（５ＵＬ付）エントリパック移行 レベルアップサービス | K113: 255000 | L113: 年額 | N113: 2013-03-14 | P113: 0.63 | Q113: 160650
B114: PKG-ME&S | C114: 販売 | D114: エントリーパック→スタンダード移行 | E114: オプション | F114: 非公開 | H114: A2960TDTL | I114: ＧＬＯＶＩＡ ｓｍａｒｔ きらら 販売 Ｖ１ スタンダード（５ＵＬ付）エントリパック移行 レベルアップサービス | J114: =CONCATENATE(G114,I114) -> ＧＬＯＶＩＡ ｓｍａｒｔ きらら 販売 Ｖ１ スタンダード（５ＵＬ付）エントリパック移行 レベルアップサービス | K114: 25500 | L114: 月額 | N114: 2013-03-14 | P114: 0.63 | Q114: =ROUNDDOWN(K114*P114,-1) -> 16060
B115: PKG | C115: 会計 | D115: エントリーパック（販売・会計） | E115: 基本 | F115: 非公開 | H115: A2969RSD | I115: ＧＬＯＶＩＡ ｓｍａｒｔ きらら 会計 Ｖ１ 販売・会計エントリパック （１ユーザライセンス付） | J115: ＧＬＯＶＩＡ ｓｍａｒｔ きらら 会計 Ｖ１ 販売・会計エントリパック （１ユーザライセンス付） | K115: 145000 | L115: 一括 | M115: ・ライセンス情報（会計メディアパックが必須）※通常版にアップグレード可能 | N115: 2012-09-21 | P115: 0.63 | Q115: 91350
B116: PKG-ME&S | C116: 会計 | D116: エントリーパック（販売・会計） | E116: 基本 | F116: 非公開 | H116: A2960RSDM1 | I116: ＧＬＯＶＩＡ ｓｍａｒｔ きらら 会計 Ｖ１ 販売・会計エントリパック （１ユーザライセンス付） プログラムサポート | J116: ＧＬＯＶＩＡ ｓｍａｒｔ きらら 会計 Ｖ１ 販売・会計エントリパック （１ユーザライセンス付） プログラムサポート | K116: 22000 | L116: 年額 | N116: 2012-09-21 | P116: 0.63 | Q116: 13860
B117: PKG-ME&S | C117: 会計 | D117: エントリーパック（販売・会計） | E117: 基本 | F117: 非公開 | H117: A2960RSDM | I117: ＧＬＯＶＩＡ ｓｍａｒｔ きらら 会計 Ｖ１ 販売・会計エントリパック （１ユーザライセンス付） プログラムサポート | J117: ＧＬＯＶＩＡ ｓｍａｒｔ きらら 会計 Ｖ１ 販売・会計エントリパック （１ユーザライセンス付） プログラムサポート | K117: 2200 | L117: 月額 | N117: 2012-09-21 | P117: 0.63 | Q117: 1380
B118: PKG | C118: 会計 | D118: エントリーパック→スタンダード移行 | E118: オプション | F118: 非公開 | H118: A2969TDS | I118: ＧＬＯＶＩＡ ｓｍａｒｔ きらら 会計 Ｖ１ 基本ライセンス（２ＵＬ付）エントリパック移行 | J118: =CONCATENATE(G118,I118) -> ＧＬＯＶＩＡ ｓｍａｒｔ きらら 会計 Ｖ１ 基本ライセンス（２ＵＬ付）エントリパック移行 | K118: 315000 | L118: 一括 | N118: 2013-03-14 | P118: 0.63 | Q118: 198450
B119: SaaS | C119: 会計 | D119: BP／Ｓ移行用 | E119: 基本 | F119: 非公開 | G119: 【販売停止2015-10】 | H119: SVS002784 | I119: ＧＬＯＶＩＡ ｓｍａｒｔ きらら 会計 業務アプリケーション利用サービス ミニベーシックプラン（ＢＰ／Ｓ移行用：１ＩＤ） | J119: 【販売停止2015-10】ＧＬＯＶＩＡ ｓｍａｒｔ きらら 会計 業務アプリケーション利用サービス ミニベーシックプラン（ＢＰ／Ｓ移行用：１ＩＤ） | K119: =10000/2 -> 5000 | L119: 月額 | M119: ・利用可能日：毎日 ・利用時間：07:00～24:00 ※Q/Aあり（24回/年まで） １ID限定商品 | N119: 2012-11-21 | P119: 0.75 | Q119: 3750
B120: SaaS | C120: 会計 | D120: BP／Ｓ移行用 | E120: オプション | F120: 非公開 | H120: SVS002797 | I120: ＧＬＯＶＩＡ ｓｍａｒｔ きらら 会計 業務アプリケーション利用サービス ミニベーシック手形管理オプション（ＢＰ／Ｓ移行用） | J120: ＧＬＯＶＩＡ ｓｍａｒｔ きらら 会計 業務アプリケーション利用サービス ミニベーシック手形管理オプション（ＢＰ／Ｓ移行用） | K120: =5000/2 -> 2500 | L120: 月額 | M120: ミニベーシック用の手形管理OP | N120: 2012-11-21 | P120: 0.75 | Q120: 1870
B121: SaaS | C121: 人事給与 | D121: BP／Ｓ移行用 | E121: 基本 | F121: 非公開 | G121: 【販売停止2015-10】 | H121: SVS002724 | I121: ＧＬＯＶＩＡ ｓｍａｒｔ きらら 人事給与 業務アプリケーション利用サービス ミニベーシックプラン（ＢＰ／Ｓ移行用：１ＩＤ、従業員５０名） | J121: 【販売停止2015-10】ＧＬＯＶＩＡ ｓｍａｒｔ きらら 人事給与 業務アプリケーション利用サービス ミニベーシックプラン（ＢＰ／Ｓ移行用：１ＩＤ、従業員５０名） | K121: =10000/2 -> 5000 | L121: 月額 | M121: １ID限定商品 ・利用可能日：毎日 ・利用時間：07:00～24:00 ・1ユーザ限定 ・従業員50名付き ※Q/Aあり（24回/年まで） | N121: 2012-11-21 | P121: 0.75 | Q121: 3750
B122: SaaS | C122: 人事給与 | D122: BP／Ｓ移行用 | E122: オプション | F122: 非公開 | H122: SVS002725 | I122: ＧＬＯＶＩＡ ｓｍａｒｔ きらら 人事給与 業務アプリケーション利用サービス ミニベーシック利用者２５追加オプション（ＢＰ／Ｓ移行用） | J122: ＧＬＯＶＩＡ ｓｍａｒｔ きらら 人事給与 業務アプリケーション利用サービス ミニベーシック利用者２５追加オプション（ＢＰ／Ｓ移行用） | K122: =3500/2 -> 1750 | L122: 月額 | M122: ※ミニベーシック用（従業員 基本＋25名*2=100名まで） | N122: 2012-11-21 | P122: 0.75 | Q122: 1310
B123: SaaS | C123: 会計 | D123: 新プラン（ライト／ベーシックプラン） | E123: 基本 | F123: 一般公開 | G123: 【販売停止2015-10】 | H123: SVS006900 | I123: ＧＬＯＶＩＡ ｓｍａｒｔ きらら 会計 利用サービス ライトプラン（１ＩＤ） | J123: =CONCATENATE(G123,I123) -> 【販売停止2015-10】ＧＬＯＶＩＡ ｓｍａｒｔ きらら 会計 利用サービス ライトプラン（１ＩＤ） | K123: 10000 | L123: 月額 | N123: 2013-04-01 | P123: 0.75 | Q123: 7500
B124: SaaS | C124: 会計 | D124: 新プラン（ライト／ベーシックプラン） | E124: オプション | F124: 一般公開 | H124: SVS006901 | I124: ＧＬＯＶＩＡ ｓｍａｒｔ きらら 会計 利用サービス ライト利用者追加（１ＩＤ）オプション | J124: =CONCATENATE(G124,I124) -> ＧＬＯＶＩＡ ｓｍａｒｔ きらら 会計 利用サービス ライト利用者追加（１ＩＤ）オプション | K124: 3500 | L124: 月額 | N124: 2013-04-01 | P124: 0.75 | Q124: 2620
B125: SaaS | C125: 会計 | D125: 新プラン（ライト／ベーシックプラン） | E125: オプション | F125: 一般公開 | H125: SVS006902 | I125: ＧＬＯＶＩＡ ｓｍａｒｔ きらら 会計 利用サービス ライト手形管理オプション | J125: =CONCATENATE(G125,I125) -> ＧＬＯＶＩＡ ｓｍａｒｔ きらら 会計 利用サービス ライト手形管理オプション | K125: 5000 | L125: 月額 | N125: 2013-04-01 | P125: 0.75 | Q125: 3750
B126: SaaS | C126: 会計 | D126: 新プラン（ライト／ベーシックプラン） | E126: オプション | F126: 一般公開 | H126: SVS006903 | I126: ＧＬＯＶＩＡ ｓｍａｒｔ きらら 会計 利用サービス ライトデータ参照期間拡張（過去５会計年度）オプション | J126: ＧＬＯＶＩＡ ｓｍａｒｔ きらら 会計 利用サービス ライトデータ参照期間拡張（過去５会計年度）オプション | K126: 3000 | L126: 月額 | N126: 2013-04-01 | P126: 0.75 | Q126: 2250
B127: SaaS | C127: 会計 | D127: 新プラン（ライト／ベーシックプラン） | E127: オプション | F127: 一般公開 | H127: SVS006904 | I127: ＧＬＯＶＩＡ ｓｍａｒｔ きらら 会計 利用サービス ライトデータ参照期間拡張（過去７会計年度）オプション | J127: ＧＬＯＶＩＡ ｓｍａｒｔ きらら 会計 利用サービス ライトデータ参照期間拡張（過去７会計年度）オプション | K127: 5000 | L127: 月額 | N127: 2013-04-01 | P127: 0.75 | Q127: 3750
B128: SaaS | C128: 会計 | D128: 新プラン（ライト／ベーシックプラン） | E128: オプション | F128: 一般公開 | H128: SVS006905 | I128: ＧＬＯＶＩＡ ｓｍａｒｔ きらら 会計 利用サービス ライトデータ参照期間拡張（過去１０会計年度）オプション | J128: ＧＬＯＶＩＡ ｓｍａｒｔ きらら 会計 利用サービス ライトデータ参照期間拡張（過去１０会計年度）オプション | K128: 8000 | L128: 月額 | N128: 2013-04-01 | P128: 0.75 | Q128: 6000
B129: SaaS | C129: 会計 | D129: 新プラン（ライト／ベーシックプラン） | E129: 基本 | F129: 一般公開 | G129: 【販売停止2015-10】 | H129: SVS006910 | I129: ＧＬＯＶＩＡ ｓｍａｒｔ きらら 会計 利用サービス スタンダードプラン（２ＩＤ） | J129: 【販売停止2015-10】ＧＬＯＶＩＡ ｓｍａｒｔ きらら 会計 利用サービス スタンダードプラン（２ＩＤ） | K129: 22000 | L129: 月額 | N129: 2013-04-01 | P129: 0.75 | Q129: 16500
B130: SaaS | C130: 会計 | D130: 新プラン（ライト／ベーシックプラン） | E130: オプション | F130: 一般公開 | H130: SVS006911 | I130: ＧＬＯＶＩＡ ｓｍａｒｔ きらら 会計 利用サービス スタンダード利用者追加（１ＩＤ）オプション | J130: ＧＬＯＶＩＡ ｓｍａｒｔ きらら 会計 利用サービス スタンダード利用者追加（１ＩＤ）オプション | K130: 8000 | L130: 月額 | N130: 2013-04-01 | P130: 0.75 | Q130: 6000
B131: SaaS | C131: 会計 | D131: 新プラン（ライト／ベーシックプラン） | E131: オプション | F131: 一般公開 | H131: SVS006912 | I131: ＧＬＯＶＩＡ ｓｍａｒｔ きらら 会計 利用サービス スタンダード手形管理オプション | J131: ＧＬＯＶＩＡ ｓｍａｒｔ きらら 会計 利用サービス スタンダード手形管理オプション | K131: 10000 | L131: 月額 | N131: 2013-04-01 | P131: 0.75 | Q131: 7500
B132: SaaS | C132: 会計 | D132: 新プラン（ライト／ベーシックプラン） | E132: オプション | F132: 一般公開 | H132: SVS006913 | I132: ＧＬＯＶＩＡ ｓｍａｒｔ きらら 会計 利用サービス スタンダードデータ参照期間拡張（過去５会計年度）オプション | J132: ＧＬＯＶＩＡ ｓｍａｒｔ きらら 会計 利用サービス スタンダードデータ参照期間拡張（過去５会計年度）オプション | K132: 6000 | L132: 月額 | N132: 2013-04-01 | P132: 0.75 | Q132: 4500
B133: SaaS | C133: 会計 | D133: 新プラン（ライト／ベーシックプラン） | E133: オプション | F133: 一般公開 | H133: SVS006914 | I133: ＧＬＯＶＩＡ ｓｍａｒｔ きらら 会計 利用サービス スタンダードデータ参照期間拡張（過去７会計年度）オプション | J133: ＧＬＯＶＩＡ ｓｍａｒｔ きらら 会計 利用サービス スタンダードデータ参照期間拡張（過去７会計年度）オプション | K133: 9000 | L133: 月額 | N133: 2013-04-01 | P133: 0.75 | Q133: 6750
B134: SaaS | C134: 会計 | D134: 新プラン（ライト／ベーシックプラン） | E134: オプション | F134: 一般公開 | H134: SVS006915 | I134: ＧＬＯＶＩＡ ｓｍａｒｔ きらら 会計 利用サービス スタンダードデータ参照期間拡張（過去１０会計年度）オプション | J134: ＧＬＯＶＩＡ ｓｍａｒｔ きらら 会計 利用サービス スタンダードデータ参照期間拡張（過去１０会計年度）オプション | K134: 13000 | L134: 月額 | N134: 2013-04-01 | P134: 0.75 | Q134: 9750
B135: SaaS | C135: 会計 | D135: 新プラン（ライト／ベーシックプラン） | E135: オプション | F135: 一般公開 | H135: SVS006916 | I135: ＧＬＯＶＩＡ ｓｍａｒｔ きらら 会計 利用サービス スタンダードリモートスポット支援オプション | J135: ＧＬＯＶＩＡ ｓｍａｒｔ きらら 会計 利用サービス スタンダードリモートスポット支援オプション | K135: 10000 | L135: 月額 | N135: 2013-04-01 | P135: 0.75 | Q135: 7500
B136: SaaS | C136: 人事給与 | D136: 新プラン（ライト／ベーシックプラン） | E136: 基本 | F136: 一般公開 | G136: 【販売停止2015-10】 | H136: SVS006950 | I136: ＧＬＯＶＩＡ ｓｍａｒｔ きらら 人事給与 利用サービス ライトプラン（３ＩＤ、従業員５０名） | J136: 【販売停止2015-10】ＧＬＯＶＩＡ ｓｍａｒｔ きらら 人事給与 利用サービス ライトプラン（３ＩＤ、従業員５０名） | K136: 10000 | L136: 月額 | N136: 2013-04-01 | P136: 0.75 | Q136: 7500
B137: SaaS | C137: 人事給与 | D137: 新プラン（ライト／ベーシックプラン） | E137: オプション | F137: 一般公開 | H137: SVS006951 | I137: ＧＬＯＶＩＡ ｓｍａｒｔ きらら 人事給与 利用サービス ライト従業員２５名追加オプション | J137: ＧＬＯＶＩＡ ｓｍａｒｔ きらら 人事給与 利用サービス ライト従業員２５名追加オプション | K137: 3500 | L137: 月額 | N137: 2013-04-01 | P137: 0.75 | Q137: 2620
B138: SaaS | C138: 人事給与 | D138: 新プラン（ライト／ベーシックプラン） | E138: オプション | F138: 一般公開 | H138: SVS006952 | I138: ＧＬＯＶＩＡ ｓｍａｒｔ きらら 人事給与 利用サービス ライトデータ参照期間拡張（過去５年）オプション | J138: ＧＬＯＶＩＡ ｓｍａｒｔ きらら 人事給与 利用サービス ライトデータ参照期間拡張（過去５年）オプション | K138: 3000 | L138: 月額 | N138: 2013-04-01 | P138: 0.75 | Q138: 2250
B139: SaaS | C139: 人事給与 | D139: 新プラン（ライト／ベーシックプラン） | E139: オプション | F139: 一般公開 | H139: SVS006953 | I139: ＧＬＯＶＩＡ ｓｍａｒｔ きらら 人事給与 利用サービス ライトデータ参照期間拡張（過去７年）オプション | J139: ＧＬＯＶＩＡ ｓｍａｒｔ きらら 人事給与 利用サービス ライトデータ参照期間拡張（過去７年）オプション | K139: 5000 | L139: 月額 | N139: 2013-04-01 | P139: 0.75 | Q139: 3750
B140: SaaS | C140: 人事給与 | D140: 新プラン（ライト／ベーシックプラン） | E140: オプション | F140: 一般公開 | H140: SVS006954 | I140: ＧＬＯＶＩＡ ｓｍａｒｔ きらら 人事給与 利用サービス ライトデータ参照期間拡張（過去１０年）オプション | J140: ＧＬＯＶＩＡ ｓｍａｒｔ きらら 人事給与 利用サービス ライトデータ参照期間拡張（過去１０年）オプション | K140: 8000 | L140: 月額 | N140: 2013-04-01 | P140: 0.75 | Q140: 6000
B141: SaaS | C141: 人事給与 | D141: 新プラン（ライト／ベーシックプラン） | E141: 基本 | F141: 一般公開 | G141: 【販売停止2015-10】 | H141: SVS006960 | I141: ＧＬＯＶＩＡ ｓｍａｒｔ きらら 人事給与 利用サービス スタンダードプラン（５ＩＤ、従業員１００名） | J141: 【販売停止2015-10】ＧＬＯＶＩＡ ｓｍａｒｔ きらら 人事給与 利用サービス スタンダードプラン（５ＩＤ、従業員１００名） | K141: 22000 | L141: 月額 | N141: 2013-04-01 | P141: 0.75 | Q141: 16500
B142: SaaS | C142: 人事給与 | D142: 新プラン（ライト／ベーシックプラン） | E142: オプション | F142: 一般公開 | H142: SVS006961 | I142: ＧＬＯＶＩＡ ｓｍａｒｔ きらら 人事給与 利用サービス スタンダード従業員５０名追加オプション | J142: ＧＬＯＶＩＡ ｓｍａｒｔ きらら 人事給与 利用サービス スタンダード従業員５０名追加オプション | K142: 10000 | L142: 月額 | N142: 2013-04-01 | P142: 0.75 | Q142: 7500
B143: SaaS | C143: 人事給与 | D143: 新プラン（ライト／ベーシックプラン） | E143: オプション | F143: 一般公開 | H143: SVS006962 | I143: ＧＬＯＶＩＡ ｓｍａｒｔ きらら 人事給与 利用サービス スタンダードデータ参照期間拡張（過去５年）オプション | J143: ＧＬＯＶＩＡ ｓｍａｒｔ きらら 人事給与 利用サービス スタンダードデータ参照期間拡張（過去５年）オプション | K143: 6000 | L143: 月額 | N143: 2013-04-01 | P143: 0.75 | Q143: 4500
B144: SaaS | C144: 人事給与 | D144: 新プラン（ライト／ベーシックプラン） | E144: オプション | F144: 一般公開 | H144: SVS006963 | I144: ＧＬＯＶＩＡ ｓｍａｒｔ きらら 人事給与 利用サービス スタンダードデータ参照期間拡張（過去７年）オプション | J144: ＧＬＯＶＩＡ ｓｍａｒｔ きらら 人事給与 利用サービス スタンダードデータ参照期間拡張（過去７年）オプション | K144: 9000 | L144: 月額 | N144: 2013-04-01 | P144: 0.75 | Q144: 6750
B145: SaaS | C145: 人事給与 | D145: 新プラン（ライト／ベーシックプラン） | E145: オプション | F145: 一般公開 | H145: SVS006964 | I145: ＧＬＯＶＩＡ ｓｍａｒｔ きらら 人事給与 利用サービス スタンダードデータ参照期間拡張（過去１０年）オプション | J145: ＧＬＯＶＩＡ ｓｍａｒｔ きらら 人事給与 利用サービス スタンダードデータ参照期間拡張（過去１０年）オプション | K145: 13000 | L145: 月額 | N145: 2013-04-01 | P145: 0.75 | Q145: 9750
B146: SaaS | C146: 人事給与 | D146: 新プラン（ライト／ベーシックプラン） | E146: オプション | F146: 一般公開 | H146: SVS006965 | I146: ＧＬＯＶＩＡ ｓｍａｒｔ きらら 人事給与 利用サービス スタンダードリモートスポット支援オプション | J146: ＧＬＯＶＩＡ ｓｍａｒｔ きらら 人事給与 利用サービス スタンダードリモートスポット支援オプション | K146: 10000 | L146: 月額 | N146: 2013-04-01 | P146: 0.75 | Q146: 7500
B147: PKG | C147: 会計 | D147: きらら会計V1.1 | E147: 基本 | F147: 一般公開 | H147: A296CVKL | I147: ＧＬＯＶＩＡ ｓｍａｒｔ きらら 会計 ∨１．１ メディアパック | J147: ＧＬＯＶＩＡ ｓｍａｒｔ きらら 会計 ∨１．１ メディアパック | K147: 5000 | L147: 一括 | N147: 2014-01-31 | O147: =K147*0.9 -> 4500 | P147: 0.63 | Q147: =ROUNDDOWN(O147*P147,-1) -> 2830
B148: PKG | C148: 会計 | E148: 基本 | F148: 一般公開 | H148: A2969VKM | I148: ＧＬＯＶＩＡ ｓｍａｒｔ きらら 会計 ∨１．１ 基本ライセンス（１ユーザライセンス付） | J148: ＧＬＯＶＩＡ ｓｍａｒｔ きらら 会計 ∨１．１ 基本ライセンス（１ユーザライセンス付） | K148: 360000 | L148: 一括 | N148: 2014-01-31 | O148: =K148*0.9 -> 324000 | P148: 0.63 | Q148: =ROUNDDOWN(O148*P148,-1) -> 204120
B149: PKG | C149: 会計 | E149: オプション | F149: 一般公開 | H149: A2969VKN | I149: ＧＬＯＶＩＡ ｓｍａｒｔ きらら 会計 ∨１．１ 追加１ユーザライセンス | J149: =CONCATENATE(G149,I149) -> ＧＬＯＶＩＡ ｓｍａｒｔ きらら 会計 ∨１．１ 追加１ユーザライセンス | K149: 360000 | L149: 一括 | N149: 2014-01-31 | O149: =K149*0.9 -> 324000 | P149: 0.63 | Q149: =ROUNDDOWN(O149*P149,-1) -> 204120
B150: PKG | C150: 会計 | E150: オプション | F150: 一般公開 | H150: A2969VKP | I150: ＧＬＯＶＩＡ ｓｍａｒｔ きらら 会計 ∨１．１ 手形管理オプション | J150: =CONCATENATE(G150,I150) -> ＧＬＯＶＩＡ ｓｍａｒｔ きらら 会計 ∨１．１ 手形管理オプション | K150: 360000 | L150: 一括 | N150: 2014-01-31 | O150: =K150*0.9 -> 324000 | P150: 0.63 | Q150: =ROUNDDOWN(O150*P150,-1) -> 204120
B151: PKG | C151: 会計 | E151: オプション | F151: 一般公開 | H151: A51491HS | I151: ＧＬＯＶＩＡ ｓｍａｒｔ きらら 会計 Ｖ１．１ 支払管理オプション | J151: ＧＬＯＶＩＡ ｓｍａｒｔ きらら 会計 Ｖ１．１ 支払管理オプション | K151: 360000 | L151: 一括 | N151: 2015-12-24 | P151: 0.8 | Q151: =ROUNDDOWN(K151*P151,-1) -> 288000
B152: PKG-ME&S | C152: 会計 | E152: 基本 | F152: 一般公開 | H152: A2960VKMM1 | I152: ＧＬＯＶＩＡ ｓｍａｒｔ きらら 会計 ∨１．１ 基本ライセンス（１ユーザライセンス付） プログラムサポート | J152: ＧＬＯＶＩＡ ｓｍａｒｔ きらら 会計 ∨１．１ 基本ライセンス（１ユーザライセンス付） プログラムサポート | K152: 54000 | L152: 年額 | N152: 2014-01-31 | P152: 0.8 | Q152: 43200
B153: PKG-ME&S | C153: 会計 | E153: オプション | F153: 一般公開 | H153: A2960VKNM1 | I153: ＧＬＯＶＩＡ ｓｍａｒｔ きらら 会計 ∨１．１ 追加１ユーザライセンス プログラムサポート | J153: =CONCATENATE(G153,I153) -> ＧＬＯＶＩＡ ｓｍａｒｔ きらら 会計 ∨１．１ 追加１ユーザライセンス プログラムサポート | K153: 54000 | L153: 年額 | N153: 2014-01-31 | P153: 0.8 | Q153: 43200
B154: PKG-ME&S | C154: 会計 | E154: オプション | F154: 一般公開 | H154: A2960VKPM1 | I154: ＧＬＯＶＩＡ ｓｍａｒｔ きらら 会計 ∨１．１ 手形管理オプション プログラムサポート | J154: =CONCATENATE(G154,I154) -> ＧＬＯＶＩＡ ｓｍａｒｔ きらら 会計 ∨１．１ 手形管理オプション プログラムサポート | K154: 54000 | L154: 年額 | N154: 2014-01-31 | P154: 0.8 | Q154: 43200
B155: PKG-ME&S | C155: 会計 | E155: オプション | F155: 一般公開 | H155: A51401HSM1 | I155: ＧＬＯＶＩＡ ｓｍａｒｔ きらら 会計 Ｖ１．１ 支払管理オプション プログラムサポート | J155: ＧＬＯＶＩＡ ｓｍａｒｔ きらら 会計 Ｖ１．１ 支払管理オプション プログラムサポート | K155: 54000 | L155: 年額 | N155: 2015-12-24 | P155: 0.8 | Q155: 43200
B156: PKG-ME&S | C156: 会計 | E156: 基本 | F156: 一般公開 | H156: A2960VKMM | I156: ＧＬＯＶＩＡ ｓｍａｒｔ きらら 会計 ∨１．１ 基本ライセンス（１ユーザライセンス付） プログラムサポート | J156: =CONCATENATE(G156,I156) -> ＧＬＯＶＩＡ ｓｍａｒｔ きらら 会計 ∨１．１ 基本ライセンス（１ユーザライセンス付） プログラムサポート | K156: 5400 | L156: 月額 | N156: 2014-01-31 | P156: 0.8 | Q156: 4320
B157: PKG-ME&S | C157: 会計 | E157: オプション | F157: 一般公開 | H157: A2960VKNM | I157: ＧＬＯＶＩＡ ｓｍａｒｔ きらら 会計 ∨１．１ 追加１ユーザライセンス プログラムサポート | J157: =CONCATENATE(G157,I157) -> ＧＬＯＶＩＡ ｓｍａｒｔ きらら 会計 ∨１．１ 追加１ユーザライセンス プログラムサポート | K157: 5400 | L157: 月額 | N157: 2014-01-31 | O157: =K157*0.9 -> 4860 | P157: 0.63 | Q157: =ROUNDDOWN(O157*P157,-1) -> 3060
B158: PKG-ME&S | C158: 会計 | E158: オプション | F158: 一般公開 | H158: A2960VKPM | I158: ＧＬＯＶＩＡ ｓｍａｒｔ きらら 会計 ∨１．１ 手形管理オプション プログラムサポート | J158: ＧＬＯＶＩＡ ｓｍａｒｔ きらら 会計 ∨１．１ 手形管理オプション プログラムサポート | K158: 5400 | L158: 月額 | N158: 2014-01-31 | O158: 4860 | P158: 0.63 | Q158: 3060
B159: PKG-ME&S | C159: 会計 | E159: オプション | F159: 一般公開 | H159: A51401HSM | I159: ＧＬＯＶＩＡ ｓｍａｒｔ きらら 会計 Ｖ１．１ 支払管理オプション プログラムサポート | J159: ＧＬＯＶＩＡ ｓｍａｒｔ きらら 会計 Ｖ１．１ 支払管理オプション プログラムサポート | K159: 5400 | L159: 月額 | N159: 2015-12-24 | O159: 4860 | P159: 0.63 | Q159: 3060
B160: PKG | C160: 会計 | D160: きらら会計V1.1 BP移行 | E160: 基本 | F160: 非公開 | H160: A2969VKQ | I160: ＧＬＯＶＩＡ ｓｍａｒｔ きらら 会計 ∨１．１ 基本ライセンス（１ユーザライセンス付） ＢＰ移行 | J160: =CONCATENATE(G160,I160) -> ＧＬＯＶＩＡ ｓｍａｒｔ きらら 会計 ∨１．１ 基本ライセンス（１ユーザライセンス付） ＢＰ移行 | K160: 180000 | L160: 一括 | N160: 2014-01-31 | O160: 162000 | P160: 0.63 | Q160: 102060
B161: PKG | C161: 会計 | E161: オプション | F161: 非公開 | H161: A2969VKR | I161: ＧＬＯＶＩＡ ｓｍａｒｔ きらら 会計 ∨１．１ 追加１ユーザライセンス ＢＰ移行 | J161: =CONCATENATE(G161,I161) -> ＧＬＯＶＩＡ ｓｍａｒｔ きらら 会計 ∨１．１ 追加１ユーザライセンス ＢＰ移行 | K161: 180000 | L161: 一括 | N161: 2014-01-31 | O161: 162000 | P161: 0.63 | Q161: 102060
B162: PKG | C162: 会計 | E162: オプション | F162: 非公開 | H162: A2969VKS | I162: ＧＬＯＶＩＡ ｓｍａｒｔ きらら 会計 ∨１．１ 手形管理オプション ＢＰ移行 | J162: =CONCATENATE(G162,I162) -> ＧＬＯＶＩＡ ｓｍａｒｔ きらら 会計 ∨１．１ 手形管理オプション ＢＰ移行 | K162: 180000 | L162: 一括 | N162: 2014-01-31 | O162: 162000 | P162: 0.63 | Q162: 102060
B163: PKG | C163: 会計 | E163: オプション | F163: 非公開 | H163: A51491HT | I163: ＧＬＯＶＩＡ ｓｍａｒｔ きらら 会計 Ｖ１．１ 支払管理オプション ＢＰ移行 | J163: =CONCATENATE(G163,I163) -> ＧＬＯＶＩＡ ｓｍａｒｔ きらら 会計 Ｖ１．１ 支払管理オプション ＢＰ移行 | K163: 180000 | L163: 一括 | N163: 2015-12-24 | P163: 0.8 | Q163: =ROUNDDOWN(K163*P163,-1) -> 144000
B164: PKG | C164: 人事給与 | D164: きらら人事給与V1.1 | E164: 基本 | F164: 一般公開 | H164: A296CVKT | I164: ＧＬＯＶＩＡ ｓｍａｒｔ きらら 人事給与 ∨１．１ メディアパック | J164: =CONCATENATE(G164,I164) -> ＧＬＯＶＩＡ ｓｍａｒｔ きらら 人事給与 ∨１．１ メディアパック | K164: 5000 | L164: 一括 | N164: 2014-01-31 | P164: 0.8 | Q164: =ROUNDDOWN(K164*P164,-1) -> 4000
B165: PKG | C165: 人事給与 | E165: 基本 | F165: 一般公開 | H165: A2969VKU | I165: ＧＬＯＶＩＡ ｓｍａｒｔ きらら 人事給与 ∨１．１ 基本ライセンス（社員５０名付） | J165: ＧＬＯＶＩＡ ｓｍａｒｔ きらら 人事給与 ∨１．１ 基本ライセンス（社員５０名付） | K165: 300000 | L165: 一括 | N165: 2014-01-31 | P165: 0.8 | Q165: =ROUNDDOWN(K165*P165,-1) -> 240000
B166: PKG | C166: 人事給与 | E166: オプション | F166: 一般公開 | H166: A2969VKV | I166: ＧＬＯＶＩＡ ｓｍａｒｔ きらら 人事給与 ∨１．１ 社員追加５０名ライセンス | J166: =CONCATENATE(G166,I166) -> ＧＬＯＶＩＡ ｓｍａｒｔ きらら 人事給与 ∨１．１ 社員追加５０名ライセンス | K166: 300000 | L166: 一括 | N166: 2014-01-31 | P166: 0.8 | Q166: =ROUNDDOWN(K166*P166,-1) -> 240000
B167: PKG-ME&S | C167: 人事給与 | E167: 基本 | F167: 一般公開 | H167: A2960VKUM1 | I167: ＧＬＯＶＩＡ ｓｍａｒｔ きらら 人事給与 ∨１．１ 基本ライセンス（社員５０名付） プログラムサポート | J167: =CONCATENATE(G167,I167) -> ＧＬＯＶＩＡ ｓｍａｒｔ きらら 人事給与 ∨１．１ 基本ライセンス（社員５０名付） プログラムサポート | K167: 45000 | L167: 年額 | N167: 2014-01-31 | O167: =K167*0.9 -> 40500 | P167: 0.63 | Q167: =ROUNDDOWN(K167*(0.9*P167),-1) -> 25510
B168: PKG-ME&S | C168: 人事給与 | E168: オプション | F168: 一般公開 | H168: A2960VKVM1 | I168: ＧＬＯＶＩＡ ｓｍａｒｔ きらら 人事給与 ∨１．１ 社員追加５０名ライセンス プログラムサポート | J168: =CONCATENATE(G168,I168) -> ＧＬＯＶＩＡ ｓｍａｒｔ きらら 人事給与 ∨１．１ 社員追加５０名ライセンス プログラムサポート | K168: 45000 | L168: 年額 | N168: 2014-01-31 | O168: =K168*0.9 -> 40500 | P168: 0.63 | Q168: =ROUNDDOWN(K168*(0.9*P168),-1) -> 25510
B169: PKG-ME&S | C169: 人事給与 | E169: 基本 | F169: 一般公開 | H169: A2960VKUM | I169: ＧＬＯＶＩＡ ｓｍａｒｔ きらら 人事給与 ∨１．１ 基本ライセンス（社員５０名付） プログラムサポート | J169: =CONCATENATE(G169,I169) -> ＧＬＯＶＩＡ ｓｍａｒｔ きらら 人事給与 ∨１．１ 基本ライセンス（社員５０名付） プログラムサポート | K169: 4500 | L169: 月額 | N169: 2014-01-31 | P169: 0.63 | Q169: =ROUNDDOWN(K169*P169,-1) -> 2830
B170: PKG-ME&S | C170: 人事給与 | E170: オプション | F170: 一般公開 | H170: A2960VKVM | I170: ＧＬＯＶＩＡ ｓｍａｒｔ きらら 人事給与 ∨１．１ 社員追加５０名ライセンス プログラムサポート | J170: ＧＬＯＶＩＡ ｓｍａｒｔ きらら 人事給与 ∨１．１ 社員追加５０名ライセンス プログラムサポート | K170: 4500 | L170: 月額 | N170: 2014-01-31 | P170: 0.63 | Q170: 2830
B171: PKG | C171: 人事給与 | D171: きらら人事給与V1.1 BP移行 | E171: 基本 | F171: 非公開 | H171: A2969VKW | I171: ＧＬＯＶＩＡ ｓｍａｒｔ きらら 人事給与 ∨１．１ 基本ライセンス（社員５０名付） ＢＰ移行 | J171: =CONCATENATE(G171,I171) -> ＧＬＯＶＩＡ ｓｍａｒｔ きらら 人事給与 ∨１．１ 基本ライセンス（社員５０名付） ＢＰ移行 | K171: 150000 | L171: 一括 | N171: 2014-01-31 | P171: 0.63 | Q171: 94500
B172: PKG | C172: 人事給与 | E172: オプション | F172: 非公開 | H172: A2969VKX | I172: ＧＬＯＶＩＡ ｓｍａｒｔ きらら 人事給与 ∨１．１ 社員追加５０名ライセンス ＢＰ移行 | J172: =CONCATENATE(G172,I172) -> ＧＬＯＶＩＡ ｓｍａｒｔ きらら 人事給与 ∨１．１ 社員追加５０名ライセンス ＢＰ移行 | K172: 150000 | L172: 一括 | N172: 2014-01-31 | P172: 0.63 | Q172: 94500
B173: PKG | C173: 販売 | D173: 通常商品 | E173: オプション | F173: 一般公開 | H173: A2969XF7 | I173: ＧＬＯＶＩＡ ｓｍａｒｔ きらら 販売 Ｖ１ スタンダード 追加１００ユーザライセンス | J173: =CONCATENATE(G173,I173) -> ＧＬＯＶＩＡ ｓｍａｒｔ きらら 販売 Ｖ１ スタンダード 追加１００ユーザライセンス | K173: 4500000 | L173: 一括 | N173: 2014-12-24 | P173: 0.63 | Q173: 2835000
B174: PKG | C174: 販売 | D174: 通常商品 | E174: オプション | F174: 一般公開 | H174: A2969XF8 | I174: ＧＬＯＶＩＡ ｓｍａｒｔ きらら 販売 Ｖ１ スタンダード 追加２５０ユーザライセンス | J174: =CONCATENATE(G174,I174) -> ＧＬＯＶＩＡ ｓｍａｒｔ きらら 販売 Ｖ１ スタンダード 追加２５０ユーザライセンス | K174: 8125000 | L174: 一括 | N174: 2014-12-24 | P174: 0.63 | Q174: 5118750
B175: PKG | C175: 販売 | D175: 通常商品 | E175: オプション | F175: 一般公開 | H175: A296CXF9 | I175: ＧＬＯＶＩＡ ｓｍａｒｔ きらら 販売 Ｖ１ スタンダード 開発検証サーバライセンス（５ユーザライセンス付き） | J175: =CONCATENATE(G175,I175) -> ＧＬＯＶＩＡ ｓｍａｒｔ きらら 販売 Ｖ１ スタンダード 開発検証サーバライセンス（５ユーザライセンス付き） | K175: 750000 | L175: 一括 | N175: 2014-12-24 | P175: 0.63 | Q175: 472500
B176: PKG | C176: 販売 | D176: 通常商品 | E176: オプション | F176: 一般公開 | H176: A2969XFA | I176: ＧＬＯＶＩＡ ｓｍａｒｔ きらら 販売 Ｖ１ スタンダード 待機サーバライセンス | J176: =CONCATENATE(G176,I176) -> ＧＬＯＶＩＡ ｓｍａｒｔ きらら 販売 Ｖ１ スタンダード 待機サーバライセンス | K176: 750000 | L176: 一括 | N176: 2014-12-24 | P176: 0.63 | Q176: 472500
B177: PKG-ME&S | C177: 販売 | D177: 通常商品 | E177: オプション | F177: 一般公開 | H177: A2960XF7L1 | I177: ＧＬＯＶＩＡ ｓｍａｒｔ きらら 販売 Ｖ１ スタンダード 追加１００ユーザライセンス レベルアップサービス | J177: =CONCATENATE(G177,I177) -> ＧＬＯＶＩＡ ｓｍａｒｔ きらら 販売 Ｖ１ スタンダード 追加１００ユーザライセンス レベルアップサービス | K177: 67500 | L177: 月額 | N177: 2014-12-24 | P177: 0.63 | Q177: 42520
B178: PKG-ME&S | C178: 販売 | D178: 通常商品 | E178: オプション | F178: 一般公開 | H178: A2960XF8L1 | I178: ＧＬＯＶＩＡ ｓｍａｒｔ きらら 販売 Ｖ１ スタンダード 追加２５０ユーザライセンス レベルアップサービス | J178: =CONCATENATE(G178,I178) -> ＧＬＯＶＩＡ ｓｍａｒｔ きらら 販売 Ｖ１ スタンダード 追加２５０ユーザライセンス レベルアップサービス | K178: 121870 | L178: 月額 | N178: 2014-12-24 | P178: 0.63 | Q178: 76770
B179: PKG-ME&S | C179: 販売 | D179: 通常商品 | E179: オプション | F179: 一般公開 | H179: A2960XF9L1 | I179: ＧＬＯＶＩＡ ｓｍａｒｔ きらら 販売 Ｖ１ スタンダード 開発検証サーバライセンス（５ユーザライセンス付き） レベルアップサービス | J179: ＧＬＯＶＩＡ ｓｍａｒｔ きらら 販売 Ｖ１ スタンダード 開発検証サーバライセンス（５ユーザライセンス付き） レベルアップサービス | K179: 11250 | L179: 月額 | N179: 2014-12-24 | P179: 0.63 | Q179: 7080
B180: PKG-ME&S | C180: 販売 | D180: 通常商品 | E180: オプション | F180: 一般公開 | H180: A2960XFAL1 | I180: ＧＬＯＶＩＡ ｓｍａｒｔ きらら 販売 Ｖ１ スタンダード 待機サーバライセンス レベルアップサービス | J180: ＧＬＯＶＩＡ ｓｍａｒｔ きらら 販売 Ｖ１ スタンダード 待機サーバライセンス レベルアップサービス | K180: 11250 | L180: 月額 | N180: 2014-12-24 | P180: 0.63 | Q180: 7080
B181: PKG-ME&S | C181: 販売 | D181: 通常商品 | E181: オプション | F181: 一般公開 | H181: A2960XF7L | I181: ＧＬＯＶＩＡ ｓｍａｒｔ きらら 販売 Ｖ１ スタンダード 追加１００ユーザライセンス レベルアップサービス | J181: ＧＬＯＶＩＡ ｓｍａｒｔ きらら 販売 Ｖ１ スタンダード 追加１００ユーザライセンス レベルアップサービス | K181: 675000 | L181: 年額 | N181: 2014-12-24 | P181: 0.75 | Q181: =ROUNDDOWN(K181*P181,-1) -> 506250
B182: PKG-ME&S | C182: 販売 | D182: 通常商品 | E182: オプション | F182: 一般公開 | H182: A2960XF8L | I182: ＧＬＯＶＩＡ ｓｍａｒｔ きらら 販売 Ｖ１ スタンダード 追加２５０ユーザライセンス レベルアップサービス | J182: ＧＬＯＶＩＡ ｓｍａｒｔ きらら 販売 Ｖ１ スタンダード 追加２５０ユーザライセンス レベルアップサービス | K182: 1218700 | L182: 年額 | N182: 2014-12-24 | P182: 0.75 | Q182: =ROUNDDOWN(K182*P182,-1) -> 914020
B183: PKG-ME&S | C183: 販売 | D183: 通常商品 | E183: オプション | F183: 一般公開 | H183: A2960XF9L | I183: ＧＬＯＶＩＡ ｓｍａｒｔ きらら 販売 Ｖ１ スタンダード 開発検証サーバライセンス（５ユーザライセンス付き） レベルアップサービス | J183: ＧＬＯＶＩＡ ｓｍａｒｔ きらら 販売 Ｖ１ スタンダード 開発検証サーバライセンス（５ユーザライセンス付き） レベルアップサービス | K183: 112500 | L183: 年額 | N183: 2014-12-24 | P183: 0.75 | Q183: 84370
B184: PKG-ME&S | C184: 販売 | D184: 通常商品 | E184: オプション | F184: 一般公開 | H184: A2960XFAL | I184: ＧＬＯＶＩＡ ｓｍａｒｔ きらら 販売 Ｖ１ スタンダード 待機サーバライセンス レベルアップサービス | J184: ＧＬＯＶＩＡ ｓｍａｒｔ きらら 販売 Ｖ１ スタンダード 待機サーバライセンス レベルアップサービス | K184: 112500 | L184: 年額 | N184: 2014-12-24 | P184: 0.75 | Q184: 84370
B185: SaaS | C185: 会計 | D185: らくらくきらら会計 | E185: 基本 | F185: 一般公開 | H185: SVS011750 | I185: ＧＬＯＶＩＡ ｓｍａｒｔ らくらくきらら 会計 基本サービス | J185: ＧＬＯＶＩＡ ｓｍａｒｔ らくらくきらら 会計 基本サービス | K185: 10000 | L185: 月額 | M185: すぐに使える機能に限定して、きらら会計を提供します １会社、１利用者ＩＤ、ＱＡサービスが含まれています | N185: 2015-09-01 | P185: 0.75 | Q185: 7500
B186: SaaS | C186: 会計 | D186: らくらくきらら会計 | E186: オプション | F186: 一般公開 | H186: SVS011751 | I186: ＧＬＯＶＩＡ ｓｍａｒｔ らくらくきらら 会計 利用者追加（１ＩＤ）オプションサービス | J186: ＧＬＯＶＩＡ ｓｍａｒｔ らくらくきらら 会計 利用者追加（１ＩＤ）オプションサービス | K186: 3000 | L186: 月額 | M186: ＧＬＯＶＩＡ ｓｍａｒｔ らくらくきらら会計へ利用者ＩＤ（１ＩＤ）追加オプションを提供します。 | N186: 2015-09-01 | P186: 0.75 | Q186: 2250
B187: SaaS | C187: 会計 | D187: らくらくきらら会計 | E187: オプション | F187: 一般公開 | H187: SVS011752 | I187: ＧＬＯＶＩＡ ｓｍａｒｔ らくらくきらら 会計 会社追加（１会社）オプションサービス | J187: ＧＬＯＶＩＡ ｓｍａｒｔ らくらくきらら 会計 会社追加（１会社）オプションサービス | K187: 3000 | L187: 月額 | M187: ＧＬＯＶＩＡ ｓｍａｒｔ らくらくきらら会計へ会社（１会社）追加オプションを提供します。 | N187: 2015-09-01 | P187: 0.75 | Q187: 2250
B188: SaaS | C188: 会計 | D188: らくらくきらら会計 | E188: オプション | F188: 一般公開 | H188: SVS011753 | I188: ＧＬＯＶＩＡ ｓｍａｒｔ らくらくきらら 会計 データ参照期間拡張（過去５会計年度）オプションサービス | J188: ＧＬＯＶＩＡ ｓｍａｒｔ らくらくきらら 会計 データ参照期間拡張（過去５会計年度）オプションサービス | K188: 3000 | L188: 月額 | M188: ＧＬＯＶＩＡ ｓｍａｒｔ らくらくきらら会計で過年度データを５年まで保管できるオプションを提供します。 | N188: 2015-09-01 | P188: 0.75 | Q188: 2250
B189: SaaS | C189: 会計 | D189: らくらくきらら会計 | E189: オプション | F189: 一般公開 | H189: SVS011754 | I189: ＧＬＯＶＩＡ ｓｍａｒｔ らくらくきらら 会計 データ参照期間拡張（過去７会計年度）オプションサービス | J189: ＧＬＯＶＩＡ ｓｍａｒｔ らくらくきらら 会計 データ参照期間拡張（過去７会計年度）オプションサービス | K189: 5000 | L189: 月額 | M189: ＧＬＯＶＩＡ ｓｍａｒｔ らくらくきらら会計で過年度データを７年まで保管できるオプションを提供します。 | N189: 2015-09-01 | P189: 0.75 | Q189: 3750
B190: SaaS | C190: 会計 | D190: らくらくきらら会計 | E190: オプション | F190: 一般公開 | H190: SVS011755 | I190: ＧＬＯＶＩＡ ｓｍａｒｔ らくらくきらら 会計 データ参照期間拡張（過去１０会計年度）オプションサービス | J190: ＧＬＯＶＩＡ ｓｍａｒｔ らくらくきらら 会計 データ参照期間拡張（過去１０会計年度）オプションサービス | K190: 8000 | L190: 月額 | M190: ＧＬＯＶＩＡ ｓｍａｒｔ らくらくきらら会計で過年度データを１０年まで保管できるオプションを提供します。 | N190: 2015-09-01 | P190: 0.75 | Q190: 6000
B191: SaaS | C191: 会計 | D191: らくらくきらら会計 | E191: オプション | F191: 一般公開 | H191: SVS011756 | I191: ＧＬＯＶＩＡ ｓｍａｒｔ らくらくきらら 会計 リモートスポット支援オプションサービス | J191: ＧＬＯＶＩＡ ｓｍａｒｔ らくらくきらら 会計 リモートスポット支援オプションサービス | K191: 10000 | L191: 月額 | M191: ＧＬＯＶＩＡ ｓｍａｒｔ らくらくきらら会計でＱＡ対応をリモート画面を通して実施するオプションです。 事前予約制で、年２回、２時間／回までの範囲で実施します。 | N191: 2015-09-01 | P191: 0.75 | Q191: 7500
B192: SaaS | C192: 給与 | D192: らくらくきらら給与 | E192: 基本 | F192: 一般公開 | H192: SVS011850 | I192: ＧＬＯＶＩＡ ｓｍａｒｔ らくらくきらら 給与 基本サービス | J192: ＧＬＯＶＩＡ ｓｍａｒｔ らくらくきらら 給与 基本サービス | K192: 10000 | L192: 月額 | M192: すぐに使える機能に限定して、きらら給与を提供します １会社、１利用者ＩＤ、従業員５０名、ＱＡサービスが含まれています | N192: 2015-09-01 | P192: 0.75 | Q192: 7500
B193: SaaS | C193: 給与 | D193: らくらくきらら給与 | E193: オプション | F193: 一般公開 | H193: SVS011851 | I193: ＧＬＯＶＩＡ ｓｍａｒｔ らくらくきらら 給与 利用者追加（１ＩＤ）オプションサービス | J193: ＧＬＯＶＩＡ ｓｍａｒｔ らくらくきらら 給与 利用者追加（１ＩＤ）オプションサービス | K193: 2000 | L193: 月額 | M193: ＧＬＯＶＩＡ ｓｍａｒｔ らくらくきらら給与へ利用者ＩＤ（１ＩＤ）追加オプションを提供します。 | N193: 2015-09-01 | P193: 0.75 | Q193: 1500
B194: SaaS | C194: 給与 | D194: らくらくきらら給与 | E194: オプション | F194: 一般公開 | H194: SVS011852 | I194: ＧＬＯＶＩＡ ｓｍａｒｔ らくらくきらら 給与 会社追加（１会社）オプションサービス | J194: ＧＬＯＶＩＡ ｓｍａｒｔ らくらくきらら 給与 会社追加（１会社）オプションサービス | K194: 3000 | L194: 月額 | M194: ＧＬＯＶＩＡ ｓｍａｒｔ らくらくきらら給与へ会社（１会社）追加オプションを提供します。 | N194: 2015-09-01 | P194: 0.75 | Q194: 2250
B195: SaaS | C195: 給与 | D195: らくらくきらら給与 | E195: オプション | F195: 一般公開 | H195: SVS011853 | I195: ＧＬＯＶＩＡ ｓｍａｒｔ らくらくきらら 給与 従業員追加（５０名）オプションサービス | J195: ＧＬＯＶＩＡ ｓｍａｒｔ らくらくきらら 給与 従業員追加（５０名）オプションサービス | K195: 6000 | L195: 月額 | M195: ＧＬＯＶＩＡ ｓｍａｒｔ らくらくきらら給与へ従業員（５０名）追加オプションを提供します。 | N195: 2015-09-01 | P195: 0.75 | Q195: 4500
B196: SaaS | C196: 給与 | D196: らくらくきらら給与 | E196: オプション | F196: 一般公開 | H196: SVS011854 | I196: ＧＬＯＶＩＡ ｓｍａｒｔ らくらくきらら 給与 データ参照期間拡張（過去５年）オプションサービス | J196: ＧＬＯＶＩＡ ｓｍａｒｔ らくらくきらら 給与 データ参照期間拡張（過去５年）オプションサービス | K196: 3000 | L196: 月額 | M196: ＧＬＯＶＩＡ ｓｍａｒｔ らくらくきらら給与で過年度データを５年まで保管できるオプションを提供します。 | N196: 2015-09-01 | P196: 0.75 | Q196: 2250
B197: SaaS | C197: 給与 | D197: らくらくきらら給与 | E197: オプション | F197: 一般公開 | H197: SVS011855 | I197: ＧＬＯＶＩＡ ｓｍａｒｔ らくらくきらら 給与 データ参照期間拡張（過去７年）オプションサービス | J197: ＧＬＯＶＩＡ ｓｍａｒｔ らくらくきらら 給与 データ参照期間拡張（過去７年）オプションサービス | K197: 5000 | L197: 月額 | M197: ＧＬＯＶＩＡ ｓｍａｒｔ らくらくきらら給与で過年度データを７年まで保管できるオプションを提供します。 | N197: 2015-09-01 | P197: 0.75 | Q197: 3750
B198: SaaS | C198: 給与 | D198: らくらくきらら給与 | E198: オプション | F198: 一般公開 | H198: SVS011856 | I198: ＧＬＯＶＩＡ ｓｍａｒｔ らくらくきらら 給与 データ参照期間拡張（過去１０年）オプションサービス | J198: ＧＬＯＶＩＡ ｓｍａｒｔ らくらくきらら 給与 データ参照期間拡張（過去１０年）オプションサービス | K198: 8000 | L198: 月額 | M198: ＧＬＯＶＩＡ ｓｍａｒｔ らくらくきらら給与で過年度データを１０年まで保管できるオプションを提供します。 | N198: 2015-09-01 | P198: 0.75 | Q198: 6000
B199: SaaS | C199: 給与 | D199: らくらくきらら給与 | E199: オプション | F199: 一般公開 | H199: SVS011857 | I199: ＧＬＯＶＩＡ ｓｍａｒｔ らくらくきらら 給与 リモートスポット支援オプションサービス | J199: ＧＬＯＶＩＡ ｓｍａｒｔ らくらくきらら 給与 リモートスポット支援オプションサービス | K199: 10000 | L199: 月額 | M199: ＧＬＯＶＩＡ ｓｍａｒｔ らくらくきらら給与でＱＡ対応をリモート画面を通して実施するオプションです。 事前予約制で、年２回、２時間／回までの範囲で実施します。 | N199: 2015-09-01 | P199: 0.75 | Q199: 7500
B200: SaaS | C200: 会計 | D200: 新プラン ２０１５ | E200: 基本 | F200: 一般公開 | H200: SVS011700 | I200: ＧＬＯＶＩＡ ｓｍａｒｔ きらら 会計 基本サービス | J200: ＧＬＯＶＩＡ ｓｍａｒｔ きらら 会計 基本サービス | K200: 12000 | L200: 月額 | M200: ＧＬＯＶＩＡ ｓｍａｒｔ きらら会計 を提供します １会社、１利用者ＩＤ、ＱＡサービスが含まれています | N200: 2015-09-01 | P200: 0.75 | Q200: 9000
... 50 more rows
